Workbook

Sheet OVERALL STATS
A1: OVERALL TITLE COMPANY MARKET STATISTICS (Washoe County, NV)
A2: Reporting Period: AUGUST, 2020
A5: OVERALL SALES MARKET (Resales & Subdivision Sales)
A6: TITLE COMPANY | B6: CLOSINGS | C6: DOLLAR VOLUME | D6: CLOSINGS | E6: DOLLAR VOLUME | F6: CLOSINGS | G6: DOLLAR VOLUME
A7: First Centennial Title | B7: 431 | C7: 250301701.5 | D7: =B7/$B$18 -> 0.3640202703 | E7: =C7/$C$18 -> 0.3213746642 | F7: 1 | G7: =RANK(C7,$C$7:$C$17) -> 1
A8: Ticor Title | B8: 202 | C8: 134376851.7 | D8: 0.1706081081 | E8: 0.1725330484 | F8: 2 | G8: =RANK(C8,$C$7:$C$17) -> 3
A9: Western Title | B9: 174 | C9: 75132184 | D9: =B9/$B$18 -> 0.1469594595 | E9: =C9/$C$18 -> 0.09646590598 | F9: 3 | G9: 4
A10: First American Title | B10: 121 | C10: 202336250 | D10: 0.1021959459 | E10: 0.2597894621 | F10: 4 | G10: 2
A11: Stewart Title | B11: 91 | C11: 36046945 | D11: 0.07685810811 | E11: 0.04628244545 | F11: 5 | G11: 5
A12: DHI Title of Nevada | B12: 37 | C12: 13357074 | D12: 0.03125 | E12: 0.0171498042 | F12: 6 | G12: 9
A13: Calatlantic Title West | B13: 33 | C13: 15046264 | D13: 0.02787162162 | E13: 0.01931863831 | F13: 7 | G13: 7
A14: Acme Title and Escrow | B14: 27 | C14: 8802900 | D14: 0.02280405405 | E14: 0.01130247623 | F14: 8 | G14: 11
A15: Westminster Title - Las Vegas | B15: 25 | C15: 19207701 | D15: 0.02111486486 | E15: 0.02466171193 | F15: 9 | G15: 6
A16: Toiyabe Title | B16: 22 | C16: 9515800 | D16: =B16/$B$18 -> 0.01858108108 | E16: =C16/$C$18 -> 0.0122178036 | F16: 10 | G16: 10
A17: Signature Title Company | B17: 21 | C17: 14723355 | D17: 0.01773648649 | E17: 0.01890403957 | F17: 11 | G17: 8
A18: GRAND TOTAL | B18: =SUM(B7:B17) -> 1184 | C18: =SUM(C7:C17) -> 778847026.2 | D18: =SUM(D7:D17) -> 1 | E18: =SUM(E7:E17) -> 1
A20: OVERALL LOAN ONLY MARKET (Refi's, Construction, Commercial, Credit Lines, Homequity, etc.)
D21: % OF | E21: % OF | F21: RANK BY | G21: RANK BY
A22: TITLECOMPANY | B22: CLOSINGS | C22: DOLLAR VOLUME | D22: CLOSINGS | E22: DOLLAR VOLUME | F22: CLOSINGS | G22: DOLLAR VOLUME
A23: First Centennial Title | B23: 282 | C23: 86304725 | D23: =B23/$B$32 -> 0.2524619517 | E23: =C23/$C$32 -> 0.2068600291 | F23: 1 | G23: =RANK(C23,$C$23:$C$31) -> 2
A24: Western Title | B24: 218 | C24: 61431557 | D24: 0.1951656222 | E24: 0.1472426182 | F24: 2 | G24: =RANK(C24,$C$23:$C$31) -> 4
A25: First American Title | B25: 184 | C25: 138052641 | D25: 0.1647269472 | E25: 0.3308923508 | F25: 3 | G25: 1
A26: Ticor Title | B26: 179 | C26: 63267229.09 | D26: 0.1602506714 | E26: 0.1516424605 | F26: 4 | G26: 3
A27: Stewart Title | B27: 178 | C27: 46693604.02 | D27: 0.1593554163 | E27: 0.1119178618 | F27: 5 | G27: 5
A28: Acme Title and Escrow | B28: 44 | C28: 11945641 | D28: 0.0393912265 | E28: 0.02863198562 | F28: 6 | G28: 6
A29: Toiyabe Title | B29: 22 | C29: 6143756 | D29: =B29/$B$32 -> 0.01969561325 | E29: =C29/$C$32 -> 0.01472570065 | F29: 7 | G29: 7
A30: Signature Title Company | B30: 7 | C30: 2185000 | D30: =B30/$B$32 -> 0.006266786034 | E30: =C30/$C$32 -> 0.005237131149 | F30: 8 | G30: 8
A31: Calatlantic Title West | B31: 3 | C31: 1189000 | D31: =B31/$B$32 -> 0.002685765443 | E31: =C31/$C$32 -> 0.002849862213 | F31: 9 | G31: 9
A32: GRAND TOTAL | B32: =SUM(B23:B31) -> 1117 | C32: =SUM(C23:C31) -> 417213153.1 | D32: =SUM(D23:D31) -> 1 | E32: =SUM(E23:E31) -> 1
A34: OVERALL SALES AND LOAN ONLY MARKETS COMBINED
D35: % OF | E35: % OF | F35: RANK BY | G35: RANK BY
A36: TITLECOMPANY | B36: CLOSINGS | C36: DOLLAR VOLUME | D36: CLOSINGS | E36: DOLLAR VOLUME | F36: CLOSINGS | G36: DOLLAR VOLUME
A37: First Centennial Title | B37: 713 | C37: 336606426.5 | D37: =B37/$B$48 -> 0.309730669 | E37: =C37/$C$48 -> 0.2813858165 | F37: 1 | G37: =RANK(C37,$C$37:$C$47) -> 2
A38: Western Title | B38: 392 | C38: 136563741 | D38: 0.1702867072 | E38: 0.1141603271 | F38: 2 | G38: =RANK(C38,$C$37:$C$47) -> 4
A39: Ticor Title | B39: 381 | C39: 197644080.8 | D39: 0.1655082537 | E39: 0.1652203781 | F39: 3 | G39: 3
A40: First American Title | B40: 305 | C40: 340388891 | D40: =B40/$B$48 -> 0.1324934839 | E40: =C40/$C$48 -> 0.284547764 | F40: 4 | G40: 1
A41: Stewart Title | B41: 270 | C41: 82925549.02 | D41: 0.1172893136 | E41: 0.06932153245 | F41: 5 | G41: 5
A42: Acme Title and Escrow | B42: 71 | C42: 20748541 | D42: 0.03084274544 | E42: 0.01734472277 | F42: 6 | G42: 6
A43: Toiyabe Title | B43: 44 | C43: 15659556 | D43: 0.01911381407 | E43: 0.01309059068 | F43: 7 | G43: 10
A44: DHI Title of Nevada | B44: 37 | C44: 13357074 | D44: 0.01607298002 | E44: 0.01116583308 | F44: 8 | G44: 11
A45: Calatlantic Title West | B45: 36 | C45: 16235264 | D45: =B45/$B$48 -> 0.01563857515 | E45: =C45/$C$48 -> 0.01357185323 | F45: 9 | G45: 9
A46: Signature Title Company | B46: 28 | C46: 16908355 | D46: =B46/$B$48 -> 0.01216333623 | E46: =C46/$C$48 -> 0.014134523 | F46: 10 | G46: 8
A47: Westminster Title - Las Vegas | B47: 25 | C47: 19207701 | D47: =B47/$B$48 -> 0.01086012163 | E47: 0.01605665906 | F47: 11 | G47: 7
A48: GRAND TOTAL | B48: =SUM(B37:B47) -> 2302 | C48: =SUM(C37:C47) -> 1196245179 | D48: =SUM(D37:D47) -> 1 | E48: =SUM(E37:E47) -> 1
A50: Information provided by Datasource | D50: SEE CHARTS BELOW:
A51: www.datasourcenev.com

Sheet SALES STATS
A1: SALES MARKET (Washoe County, NV)
A2: ='OVERALL STATS'!A2 -> Reporting Period: AUGUST, 2020
A4: RESALE MARKET (Includes ALL types of real property)
D5: % OF | E5: % OF | F5: RANK BY | G5: RANK BY
A6: TITLE COMPANY | B6: CLOSINGS | C6: DOLLAR VOLUME | D6: CLOSINGS | E6: DOLLAR VOLUME | F6: CLOSINGS | G6: DOLLAR VOLUME
A7: First Centennial Title | B7: 407 | C7: 238720272 | D7: =B7/$B$15 -> 0.4013806706 | E7: =C7/$C$15 -> 0.3425877452 | F7: 1 | G7: =RANK(C7,$C$7:$C$14) -> 1
A8: Ticor Title | B8: 193 | C8: 128275685.7 | D8: =B8/$B$15 -> 0.1903353057 | E8: =C8/$C$15 -> 0.1840885885 | F8: 2 | G8: =RANK(C8,$C$7:$C$14) -> 3
A9: Western Title | B9: 142 | C9: 62874770 | D9: =B9/$B$15 -> 0.1400394477 | E9: =C9/$C$15 -> 0.09023165691 | F9: 3 | G9: 4
A10: First American Title | B10: 111 | C10: 197855250 | D10: =B10/$B$15 -> 0.1094674556 | E10: =C10/$C$15 -> 0.2839423037 | F10: 4 | G10: 2
A11: Stewart Title | B11: 91 | C11: 36046945 | D11: =B11/$B$15 -> 0.08974358974 | E11: =C11/$C$15 -> 0.05173101347 | F11: 5 | G11: 5
A12: Acme Title and Escrow | B12: 27 | C12: 8802900 | D12: =B12/$B$15 -> 0.02662721893 | E12: =C12/$C$15 -> 0.01263305222 | F12: 6 | G12: 8
A13: Toiyabe Title | B13: 22 | C13: 9515800 | D13: =B13/$B$15 -> 0.02169625247 | E13: =C13/$C$15 -> 0.01365613585 | F13: 7 | G13: 7
A14: Signature Title Company | B14: 21 | C14: 14723355 | D14: =B14/$B$15 -> 0.02071005917 | E14: =C14/$C$15 -> 0.0211295042 | F14: 8 | G14: 6
A15: GRAND TOTAL | B15: =SUM(B7:B14) -> 1014 | C15: =SUM(C7:C14) -> 696814977.7 | D15: =SUM(D7:D14) -> 1 | E15: =SUM(E7:E14) -> 1
A17: SUBDIVISION SALES (Builder/Developer Sales)
D18: % OF | E18: % OF | F18: RANK BY | G18: RANK BY
A19: TITLE COMPANY | B19: CLOSINGS | C19: DOLLAR VOLUME | D19: CLOSINGS | E19: DOLLAR VOLUME | F19: CLOSINGS | G19: DOLLAR VOLUME
A20: DHI Title of Nevada | B20: 37 | C20: 13357074 | D20: =B20/$B$27 -> 0.2176470588 | E20: =C20/$C$27 -> 0.1628275076 | F20: 1 | G20: =RANK(C20,$C$20:$C$26) -> 3
A21: Calatlantic Title West | B21: 33 | C21: 15046264 | D21: =B21/$B$27 -> 0.1941176471 | E21: =C21/$C$27 -> 0.1834193376 | F21: 2 | G21: =RANK(C21,$C$20:$C$26) -> 2
A22: Western Title | B22: 32 | C22: 12257414 | D22: =B22/$B$27 -> 0.1882352941 | E22: =C22/$C$27 -> 0.149422259 | F22: 3 | G22: 4
A23: Westminster Title - Las Vegas | B23: 25 | C23: 19207701 | D23: =B23/$B$27 -> 0.1470588235 | E23: =C23/$C$27 -> 0.2341487425 | F23: 4 | G23: 1
A24: First Centennial Title | B24: 24 | C24: 11581429.5 | D24: =B24/$B$27 -> 0.1411764706 | E24: =C24/$C$27 -> 0.1411817663 | F24: 5 | G24: 5
A25: First American Title | B25: 10 | C25: 4481000 | D25: =B25/$B$27 -> 0.05882352941 | E25: =C25/$C$27 -> 0.05462499208 | F25: 6 | G25: 7
A26: Ticor Title | B26: 9 | C26: 6101166 | D26: =B26/$B$27 -> 0.05294117647 | E26: =C26/$C$27 -> 0.07437539488 | F26: 7 | G26: 6
A27: GRAND TOTAL | B27: =SUM(B20:B26) -> 170 | C27: =SUM(C20:C26) -> 82032048.5 | D27: =SUM(D20:D26) -> 1 | E27: =SUM(E20:E26) -> 1
A29: RESIDENTIAL RESALE MARKET (Residential Properties Only)
D30: % OF | E30: % OF | F30: RANK BY | G30: RANK BY
A31: TITLE COMPANY | B31: CLOSINGS | C31: DOLLAR VOLUME | D31: CLOSINGS | E31: DOLLAR VOLUME | F31: CLOSINGS | G31: DOLLAR VOLUME
A32: First Centennial Title | B32: 368 | C32: 208213777 | D32: =B32/$B$40 -> 0.3974082073 | E32: =C32/$C$40 -> 0.3849413587 | F32: 1 | G32: =RANK(C32,$C$32:$C$39) -> 1
A33: Ticor Title | B33: 175 | C33: 117092112 | D33: 0.1889848812 | E33: 0.2164774941 | F33: 2 | G33: =RANK(C33,$C$32:$C$39) -> 2
A34: Western Title | B34: 132 | C34: 57093300 | D34: 0.1425485961 | E34: 0.1055529216 | F34: 3 | G34: 4
A35: First American Title | B35: 99 | C35: 90541203 | D35: 0.1069114471 | E35: 0.1673907183 | F35: 4 | G35: 3
A36: Stewart Title | B36: 86 | C36: 35194945 | D36: 0.09287257019 | E36: 0.06506769217 | F36: 5 | G36: 5
A37: Acme Title and Escrow | B37: 23 | C37: 8522900 | D37: 0.02483801296 | E37: 0.01575696264 | F37: 6 | G37: 8
A38: Toiyabe Title | B38: 22 | C38: 9515800 | D38: =B38/$B$40 -> 0.02375809935 | E38: =C38/$C$40 -> 0.01759261579 | F38: 7 | G38: 7
A39: Signature Title Company | B39: 21 | C39: 14723355 | D39: =B39/$B$40 -> 0.02267818575 | E39: =C39/$C$40 -> 0.02722023662 | F39: 8 | G39: 6
A40: GRAND TOTAL | B40: =SUM(B32:B39) -> 926 | C40: =SUM(C32:C39) -> 540897392 | D40: =SUM(D32:D39) -> 1 | E40: =SUM(E32:E39) -> 1
A42: COMMERCIAL/INDUSTRIAL, APARTMENTS, MOBILE HOME PARKS SALES MARKET
D43: % OF | E43: % OF | F43: RANK BY | G43: RANK BY
A44: TITLE COMPANY | B44: CLOSINGS | C44: DOLLAR VOLUME | D44: CLOSINGS | E44: DOLLAR VOLUME | F44: CLOSINGS | G44: DOLLAR VOLUME
A45: First Centennial Title | B45: 10 | C45: 25086000 | D45: =B45/$B$49 -> 0.4166666667 | E45: =C45/$C$49 -> 0.2094305794 | F45: 1 | G45: =RANK(C45,$C$45:$C$48) -> 2
A46: First American Title | B46: 6 | C46: 85949000 | D46: =B46/$B$49 -> 0.25 | E46: =C46/$C$49 -> 0.7175455978 | F46: 2 | G46: =RANK(C46,$C$45:$C$48) -> 1
A47: Ticor Title | B47: 5 | C47: 7546934.78 | D47: =B47/$B$49 -> 0.2083333333 | E47: =C47/$C$49 -> 0.06300561762 | F47: 3 | G47: 3
A48: Western Title | B48: 3 | C48: 1200000 | D48: =B48/$B$49 -> 0.125 | E48: =C48/$C$49 -> 0.01001820518 | F48: 4 | G48: 4
A49: GRAND TOTAL | B49: =SUM(B45:B48) -> 24 | C49: =SUM(C45:C48) -> 119781934.8 | D49: =SUM(D45:D48) -> 1 | E49: =SUM(E45:E48) -> 1
A51: VACANT LAND SALES
D52: % OF | E52: % OF | F52: RANK BY | G52: RANK BY
A53: TITLE COMPANY | B53: CLOSINGS | C53: DOLLAR VOLUME | D53: CLOSINGS | E53: DOLLAR VOLUME | F53: CLOSINGS | G53: DOLLAR VOLUME
A54: First Centennial Title | B54: 29 | C54: 5420495 | D54: =B54/$B$60 -> 0.4603174603 | E54: =C54/$C$60 -> 0.1560499043 | F54: 1 | G54: =RANK(C54,$C$54:$C$59) -> 2
A55: Ticor Title | B55: 12 | C55: 2236638.91 | D55: =B55/$B$60 -> 0.1904761905 | E55: =C55/$C$60 -> 0.0643902979 | F55: 2 | G55: =RANK(C55,$C$54:$C$59) -> 4
A56: Western Title | B56: 7 | C56: 4581470 | D56: =B56/$B$60 -> 0.1111111111 | E56: =C56/$C$60 -> 0.131895326 | F56: 3 | G56: 3
A57: First American Title | B57: 6 | C57: 21365047 | D57: =B57/$B$60 -> 0.09523809524 | E57: =C57/$C$60 -> 0.6150754755 | F57: 4 | G57: 1
A58: Stewart Title | B58: 5 | C58: 852000 | D58: =B58/$B$60 -> 0.07936507937 | E58: =C58/$C$60 -> 0.02452811384 | F58: 5 | G58: 5
A59: Acme Title and Escrow | B59: 4 | C59: 280000 | D59: =B59/$B$60 -> 0.06349206349 | E59: =C59/$C$60 -> 0.008060882484 | F59: 6 | G59: 6
A60: GRAND TOTAL | B60: =SUM(B54:B59) -> 63 | C60: =SUM(C54:C59) -> 34735650.91 | D60: =SUM(D54:D59) -> 1 | E60: =SUM(E54:E59) -> 1
A62: INCLINE VILLAGE SALES MARKET
D63: % OF | E63: % OF | F63: RANK BY | G63: RANK BY
A64: TITLE COMPANY | B64: CLOSINGS | C64: DOLLAR VOLUME | D64: CLOSINGS | E64: DOLLAR VOLUME | F64: CLOSINGS | G64: DOLLAR VOLUME
A65: First Centennial Title | B65: 32 | C65: 41569388 | D65: =B65/$B$68 -> 0.367816092 | E65: =C65/$C$68 -> 0.2817218109 | F65: 1 | G65: 3
A66: Ticor Title | B66: 29 | C66: 47457000 | D66: =B66/$B$68 -> 0.3333333333 | E66: =C66/$C$68 -> 0.3216230169 | F66: 2 | G66: 2
A67: First American Title | B67: 26 | C67: 58528350 | D67: =B67/$B$68 -> 0.2988505747 | E67: =C67/$C$68 -> 0.3966551721 | F67: 3 | G67: 1
A68: GRAND TOTAL | B68: =SUM(B65:B67) -> 87 | C68: =SUM(C65:C67) -> 147554738 | D68: =SUM(D65:D67) -> 1 | E68: =SUM(E65:E67) -> 1
A70: RESIDENTIAL RESALE MARKET (Excluding Incline Village)
D71: % OF | E71: % OF | F71: RANK BY | G71: RANK BY
A72: TITLE COMPANY | B72: CLOSINGS | C72: DOLLAR VOLUME | D72: CLOSINGS | E72: DOLLAR VOLUME | F72: CLOSINGS | G72: DOLLAR VOLUME
A73: First Centennial Title | B73: 336 | C73: 166644389 | D73: =B73/$B$81 -> 0.3995243757 | E73: =C73/$C$81 -> 0.4219244207 | F73: 1 | G73: =RANK(C73,$C$73:$C$80) -> 1
A74: Ticor Title | B74: 147 | C74: 71035112 | D74: =B74/$B$81 -> 0.1747919144 | E74: =C74/$C$81 -> 0.1798527311 | F74: 2 | G74: =RANK(C74,$C$73:$C$80) -> 2
A75: Western Title | B75: 132 | C75: 57093300 | D75: =B75/$B$81 -> 0.1569560048 | E75: =C75/$C$81 -> 0.1445536671 | F75: 3 | G75: 3
A76: Stewart Title | B76: 86 | C76: 35194945 | D76: =B76/$B$81 -> 0.1022592152 | E76: =C76/$C$81 -> 0.08910955161 | F76: 4 | G76: 4
A77: First American Title | B77: 74 | C77: 32232853 | D77: =B77/$B$81 -> 0.08799048751 | E77: =C77/$C$81 -> 0.08160987545 | F77: 5 | G77: 5
A78: Acme Title and Escrow | B78: 23 | C78: 8522900 | D78: =B78/$B$81 -> 0.02734839477 | E78: =C78/$C$81 -> 0.02157900225 | F78: 6 | G78: 8
A79: Toiyabe Title | B79: 22 | C79: 9515800 | D79: =B79/$B$81 -> 0.02615933413 | E79: =C79/$C$81 -> 0.02409291082 | F79: 7 | G79: 7
A80: Signature Title Company | B80: 21 | C80: 14723355 | D80: =B80/$B$81 -> 0.02497027348 | E80: =C80/$C$81 -> 0.03727784096 | F80: 8 | G80: 6
A81: GRAND TOTAL | B81: =SUM(B73:B80) -> 841 | C81: =SUM(C73:C80) -> 394962654 | D81: =SUM(D73:D80) -> 1 | E81: =SUM(E73:E80) -> 1
A83: Information provided by Datasource
A84: www.datasourcenev.com

Sheet LOAN ONLY STATS
A1: LOAN ONLY MARKETS (Washoe County, NV)
A2: ='OVERALL STATS'!A2 -> Reporting Period: AUGUST, 2020
A4: CONVENTIONAL LOANS MARKET (Refi's)
D5: % OF | E5: % OF | F5: RANK BY | G5: RANK BY
A6: TITLECOMPANY | B6: CLOSINGS | C6: DOLLAR VOLUME | D6: CLOSINGS | E6: DOLLAR VOLUME | F6: CLOSINGS | G6: DOLLAR VOLUME
A7: First Centennial Title | B7: 259 | C7: 80072808 | D7: =B7/$B$16 -> 0.2420560748 | E7: =C7/$C$16 -> 0.2521499294 | F7: 1 | G7: =RANK(C7,$C$7:$C$15) -> 1
A8: Western Title | B8: 216 | C8: 61098584 | D8: =B8/$B$16 -> 0.2018691589 | E8: =C8/$C$16 -> 0.1923999423 | F8: 2 | G8: =RANK(C8,$C$7:$C$15) -> 2
A9: Stewart Title | B9: 174 | C9: 46548604.02 | D9: =B9/$B$16 -> 0.1626168224 | E9: =C9/$C$16 -> 0.146581936 | F9: 3 | G9: 5
A10: First American Title | B10: 173 | C10: 53774541 | D10: 0.161682243 | E10: 0.1693364708 | F10: 4 | G10: 4
A11: Ticor Title | B11: 172 | C11: 54602369.11 | D11: 0.1607476636 | E11: 0.1719433083 | F11: 5 | G11: 3
A12: No Conventional loans this month. | B12: 44 | C12: 11945641 | D12: 0.04112149533 | E12: 0.03761692152 | F12: 6 | G12: 6
A13: Toiyabe Title | B13: 22 | C13: 6143756 | D13: 0.02056074766 | E13: 0.01934673805 | F13: 7 | G13: 7
A14: Signature Title Company | B14: 7 | C14: 2185000 | D14: =B14/$B$16 -> 0.006542056075 | E14: =C14/$C$16 -> 0.006880582927 | F14: 8 | G14: 8
A15: Calatlantic Title West | B15: 3 | C15: 1189000 | D15: =B15/$B$16 -> 0.002803738318 | E15: =C15/$C$16 -> 0.003744170755 | F15: 9 | G15: 9
A16: GRAND TOTAL | B16: =SUM(B7:B15) -> 1070 | C16: =SUM(C7:C15) -> 317560303.1 | D16: =SUM(D7:D15) -> 1 | E16: =SUM(E7:E15) -> 1
A18: COMMERCIAL LOANS MARKET
D19: % OF | E19: % OF | F19: RANK BY | G19: RANK BY
A20: TITLECOMPANY | B20: CLOSINGS | C20: DOLLAR VOLUME | D20: CLOSINGS | E20: DOLLAR VOLUME | F20: CLOSINGS | G20: DOLLAR VOLUME
A21: First American Title | B21: 6 | C21: 74080000 | D21: =B21/$B$24 -> 0.6 | E21: =C21/$C$24 -> 0.8912951934 | F21: 1 | G21: 1
A22: Ticor Title | B22: 2 | C22: 6940000 | D22: =B22/$B$24 -> 0.2 | E22: =C22/$C$24 -> 0.08349876677 | F22: 2 | G22: 2
A23: First Centennial Title | B23: 2 | C23: 2095000 | D23: =B23/$B$24 -> 0.2 | E23: =C23/$C$24 -> 0.02520603982 | F23: 2 | G23: 3
A24: GRAND TOTAL | B24: =SUM(B21:B23) -> 10 | C24: =SUM(C21:C23) -> 83115000 | D24: =SUM(D21:D23) -> 1 | E24: =SUM(E21:E23) -> 1
A26: HOME EQUITY & CREDIT LINE LOANS MARKET
D27: % OF | E27: % OF | F27: RANK BY | G27: RANK BY
A28: TITLECOMPANY | B28: CLOSINGS | C28: DOLLAR VOLUME | D28: CLOSINGS | E28: DOLLAR VOLUME | F28: CLOSINGS | G28: DOLLAR VOLUME
A29: First Centennial Title | B29: 8 | C29: 1616917 | D29: =B29/$B$34 -> 0.5333333333 | E29: =C29/$C$34 -> 0.8994805331 | F29: 1 | G29: 1
A30: Stewart Title | B30: 4 | C30: 145000 | D30: =B30/$B$34 -> 0.2666666667 | E30: =C30/$C$34 -> 0.0806625679 | F30: 2 | G30: 2
A31: First American Title | B31: 1 | C31: 18100 | D31: =B31/$B$34 -> 0.06666666667 | E31: =C31/$C$34 -> 0.01006891365 | F31: 3 | G31: 3
A32: Ticor Title | B32: 1 | C32: 9622 | D32: =B32/$B$34 -> 0.06666666667 | E32: =C32/$C$34 -> 0.005352656747 | F32: 3 | G32: 4
A33: Western Title | B33: 1 | C33: 7973 | D33: =B33/$B$34 -> 0.06666666667 | E33: =C33/$C$34 -> 0.004435328647 | F33: 3 | G33: 5
A34: GRAND TOTAL | B34: =SUM(B29:B33) -> 15 | C34: =SUM(C29:C33) -> 1797612 | D34: =SUM(D29:D33) -> 1 | E34: =SUM(E29:E33) -> 1
A36: CONSTRUCTION LOANS MARKET
D37: % OF | E37: % OF | F37: RANK BY | G37: RANK BY
A38: TITLECOMPANY | B38: CLOSINGS | C38: DOLLAR VOLUME | D38: CLOSINGS | E38: DOLLAR VOLUME | F38: CLOSINGS | G38: DOLLAR VOLUME
A39: First American Title | B39: 4 | C39: 10180000 | D39: =B39/$B$40 -> 1 | E39: =C39/$C$40 -> 1 | F39: 1 | G39: 1
A40: GRAND TOTAL | B40: =SUM(B39:B39) -> 4 | C40: =SUM(C39:C39) -> 10180000 | D40: =SUM(D39:D39) -> 1 | E40: =SUM(E39:E39) -> 1
A42: HARD MONEY LOANS MARKET
D43: % OF | E43: % OF | F43: RANK BY | G43: RANK BY
A44: TITLECOMPANY | B44: CLOSINGS | C44: DOLLAR VOLUME | D44: CLOSINGS | E44: DOLLAR VOLUME | F44: CLOSINGS | G44: DOLLAR VOLUME
A45: First Centennial Title | B45: 13 | C45: 2520000 | D45: =B45/$B$48 -> 0.7222222222 | E45: =C45/$C$48 -> 0.5526027394 | F45: 1 | G45: 1
A46: Ticor Title | B46: 4 | C46: 1715237.98 | D46: =B46/$B$48 -> 0.2222222222 | E46: =C46/$C$48 -> 0.3761290502 | F46: 2 | G46: 2
A47: Western Title | B47: 1 | C47: 325000 | D47: =B47/$B$48 -> 0.05555555556 | E47: =C47/$C$48 -> 0.07126821044 | F47: 3 | G47: 3
A48: GRAND TOTAL | B48: =SUM(B45:B47) -> 18 | C48: =SUM(C45:C47) -> 4560237.98 | D48: =SUM(D45:D47) -> 1 | E48: =SUM(E45:E47) -> 1
A50: CONVENTIONAL LOANS MARKET (Refi's) Excluding Incline Village
D51: % OF | E51: % OF | F51: RANK BY | G51: RANK BY
A52: TITLECOMPANY | B52: CLOSINGS | C52: DOLLAR VOLUME | D52: CLOSINGS | E52: DOLLAR VOLUME | F52: CLOSINGS | G52: DOLLAR VOLUME
A53: First Centennial Title | B53: 250 | C53: 75651357 | D53: =B53/$B$62 -> 0.2403846154 | E53: =C53/$C$62 -> 0.250544986 | F53: 1 | G53: =RANK(C53,$C$53:$C$61) -> 1
A54: Western Title | B54: 214 | C54: 60543703 | D54: =B54/$B$62 -> 0.2057692308 | E54: =C54/$C$62 -> 0.2005108939 | F54: 2 | G54: =RANK(C54,$C$53:$C$61) -> 2
A55: Stewart Title | B55: 171 | C55: 45536104.02 | D55: =B55/$B$62 -> 0.1644230769 | E55: =C55/$C$62 -> 0.1508081678 | F55: 3 | G55: 5
A56: First American Title | B56: 170 | C56: 52657541 | D56: 0.1634615385 | E56: 0.1743932085 | F56: 4 | G56: 3
A57: Ticor Title | B57: 159 | C57: 46095098 | D57: 0.1528846154 | E57: 0.152659465 | F57: 5 | G57: 4
A58: Acme Title and Escrow | B58: 44 | C58: 11945641 | D58: 0.04230769231 | E58: 0.03956201945 | F58: 6 | G58: 6
A59: Toiyabe Title | B59: 22 | C59: 6143756 | D59: 0.02115384615 | E59: 0.02034712029 | F59: 7 | G59: 7
A60: Signature Title Company | B60: 7 | C60: 2185000 | D60: =B60/$B$62 -> 0.006730769231 | E60: =C60/$C$62 -> 0.007236364503 | F60: 8 | G60: 8
A61: Calatlantic Title West | B61: 3 | C61: 1189000 | D61: =B61/$B$62 -> 0.002884615385 | E61: =C61/$C$62 -> 0.003937774551 | F61: 9 | G61: 9
A62: GRAND TOTAL | B62: =SUM(B53:B61) -> 1040 | C62: =SUM(C53:C61) -> 301947200 | D62: =SUM(D53:D61) -> 1 | E62: =SUM(E53:E61) -> 1
A65: Information provided by Datasource
A66: www.datasourcenev.com

Sheet BRANCH SALES TRACKING
A1: BUILDER/DEVELOPER | B1: (All)
A2: PROPTYPE | B2: (All)
D4: Values
A5: TITLE COMPANY | B5: BRANCH | C5: EO | D5: CLOSINGS | E5: DOLLAR VOL. | F5: % OF CLOSINGS | G5: % OF DOLLAR VOL.
A6: Acme Title and Escrow | D6: 27 | E6: 8802900 | F6: 0.02280405405 | G6: 0.01130247623
B7: LANDER | D7: 27 | E7: 8802900 | F7: 0.02280405405 | G7: 0.01130247623
C8: LTE | D8: 8 | E8: 2309000 | F8: 0.006756756757 | G8: 0.002964638655
C9: RA | D9: 10 | E9: 4068000 | F9: 0.008445945946 | G9: 0.005223105261
C10: YC | D10: 9 | E10: 2425900 | F10: 0.007601351351 | G10: 0.003114732314
A12: DHI Title of Nevada | D12: 37 | E12: 13357074 | F12: 0.03125 | G12: 0.0171498042
B13: LONGLEY | D13: 37 | E13: 13357074 | F13: 0.03125 | G13: 0.0171498042
C14: N/A | D14: 37 | E14: 13357074 | F14: 0.03125 | G14: 0.0171498042
A16: First American Title | D16: 121 | E16: 202336250 | F16: 0.1021959459 | G16: 0.2597894621
B17: INCLINE | D17: 26 | E17: 58528350 | F17: 0.02195945946 | G17: 0.07514742694
C18: VD | D18: 26 | E18: 58528350 | F18: 0.02195945946 | G18: 0.07514742694
B20: KIETZKE | D20: 61 | E20: 28457823 | F20: 0.05152027027 | G20: 0.03653839848
C21: KS | D21: 13 | E21: 5345100 | F21: 0.01097972973 | G21: 0.006862836758
C22: MLR | D22: 13 | E22: 8918923 | F22: 0.01097972973 | G22: 0.01145144387
C23: TK | D23: 29 | E23: 10757800 | F23: 0.02449324324 | G23: 0.01381246848
C24: MH | D24: 6 | E24: 3436000 | F24: 0.005067567568 | G24: 0.00441164938
B26: LAS VEGAS | D26: 4 | E26: 62147047 | F26: 0.003378378378 | G26: 0.07979364999
C27: NCS | D27: 2 | E27: 57217047 | F27: 0.001689189189 | G27: 0.07346378053
C28: BB | D28: 1 | E28: 3550000 | F28: 0.0008445945946 | G28: 0.004558019586
C29: RR | D29: 1 | E29: 1380000 | F29: 0.0008445945946 | G29: 0.001771849867
B31: SOUTH KIETZKE | D31: 1 | E31: 879000 | F31: 0.0008445945946 | G31: 0.001128591329
C32: CY | D32: 1 | E32: 879000 | F32: 0.0008445945946 | G32: 0.001128591329
B34: SPARKS | D34: 26 | E34: 11559030 | F34: 0.02195945946 | G34: 0.01484120708
C35: CY | D35: 16 | E35: 6738328 | F35: 0.01351351351 | G35: 0.008651670705
C36: JP | D36: 10 | E36: 4820702 | F36: 0.008445945946 | G36: 0.006189536376
B38: MINDEN | D38: 2 | E38: 765000 | F38: 0.001689189189 | G38: 0.0009822211221
C39: MK | D39: 2 | E39: 765000 | F39: 0.001689189189 | G39: 0.0009822211221
B41: SEATTLE | D41: 1 | E41: 40000000 | F41: 0.0008445945946 | G41: 0.05135796717
C42: NCS | D42: 1 | E42: 40000000 | F42: 0.0008445945946 | G42: 0.05135796717
A44: First Centennial Title | D44: 431 | E44: 250301701.5 | F44: 0.3640202703 | G44: 0.3213746642
B45: CARSON CITY | D45: 3 | E45: 1008000 | F45: 0.002533783784 | G45: 0.001294220773
C46: 17 | D46: 2 | E46: 666000 | F46: 0.001689189189 | G46: 0.0008551101533
C47: 18 | D47: 1 | E47: 342000 | F47: 0.0008445945946 | G47: 0.0004391106193
B49: DAMONTE | D49: 53 | E49: 32866300 | F49: 0.04476351351 | G49: 0.04219865891
C50: 24 | D50: 53 | E50: 32866300 | F50: 0.04476351351 | G50: 0.04219865891
B52: INCLINE | D52: 32 | E52: 41569388 | F52: 0.02702702703 | G52: 0.0533729816
C53: 25 | D53: 32 | E53: 41569388 | F53: 0.02702702703 | G53: 0.0533729816
B55: LAKESIDE | D55: 32 | E55: 12533428 | F55: 0.02702702703 | G55: 0.01609228459
C56: 5 | D56: 31 | E56: 12453428 | F56: 0.02618243243 | G56: 0.01598956866
C57: SL | D57: 1 | E57: 80000 | F57: 0.0008445945946 | G57: 0.0001027159343
B59: LAKESIDEMOANA | D59: 59 | E59: 21912994 | F59: 0.04983108108 | G59: 0.02813517066
C60: 12 | D60: 59 | E60: 21912994 | F60: 0.04983108108 | G60: 0.02813517066
B62: RIDGEVIEW | D62: 213 | E62: 123385885.5 | F62: 0.1798986486 | G62: 0.1584212064
C63: 10 | D63: 45 | E63: 19647799 | F63: 0.03800675676 | G63: 0.0252267754
C64: 11 | D64: 37 | E64: 18969018 | F64: 0.03125 | G64: 0.02435525509
C65: 15 | D65: 24 | E65: 10767217 | F65: 0.02027027027 | G65: 0.01382455943
C66: 20 | D66: 45 | E66: 36568951.5 | F66: 0.03800675676 | G66: 0.04695267526
C67: 9 | D67: 62 | E67: 37432900 | F67: 0.05236486486 | G67: 0.04806194123
B69: SPARKS | D69: 38 | E69: 15695706 | F69: 0.03209459459 | G69: 0.02015248884
C70: 21 | D70: 38 | E70: 15695706 | F70: 0.03209459459 | G70: 0.02015248884
B72: ;ALESODE | D72: 1 | E72: 1330000 | F72: 0.0008445945946 | G72: 0.001707652408
C73: 5 | D73: 1 | E73: 1330000 | F73: 0.0008445945946 | G73: 0.001707652408
A75: Ticor Title | D75: 202 | E75: 134376851.7 | F75: 0.1706081081 | G75: 0.1725330484
B76: CARSON CITY | D76: 9 | E76: 3778500 | F76: 0.007601351351 | G76: 0.004851401974
C77: DKD | D77: 5 | E77: 2893000 | F77: 0.004222972973 | G77: 0.003714464975
C78: 17 | D78: 1 | E78: 310000 | F78: 0.0008445945946 | G78: 0.0003980242456
C79: DC | D79: 3 | E79: 575500 | F79: 0.002533783784 | G79: 0.0007389127526
B81: FERNLEY | D81: 2 | E81: 574000 | F81: 0.001689189189 | G81: 0.0007369868289
C82: DNO | D82: 2 | E82: 574000 | F82: 0.001689189189 | G82: 0.0007369868289
B84: GARDNERVILLE | D84: 2 | E84: 915000 | F84: 0.001689189189 | G84: 0.001174813499
C85: RLT | D85: 2 | E85: 915000 | F85: 0.001689189189 | G85: 0.001174813499
B87: INCLINE | D87: 29 | E87: 47457000 | F87: 0.02449324324 | G87: 0.0609323762
C88: SLP | D88: 29 | E88: 47457000 | F88: 0.02449324324 | G88: 0.0609323762
B90: KIETZKE | D90: 59 | E90: 34585403.69 | F90: 0.04983108108 | G90: 0.04440590068
C91: AE | D91: 23 | E91: 12948066 | F91: 0.01942567568 | G91: 0.01662465871
C92: CD | D92: 7 | E92: 8668367.78 | F92: 0.005912162162 | G92: 0.0111297437
C93: KA | D93: 4 | E93: 1664900 | F93: 0.003378378378 | G93: 0.002137646988
C94: RLS | D94: 19 | E94: 8775138.91 | F94: 0.0160472973 | G94: 0.0112668324
C95: TO | D95: 1 | E95: 359900 | F95: 0.0008445945946 | G95: 0.0004620933096
C96: ACM | D96: 4 | E96: 1875031 | F96: 0.003378378378 | G96: 0.002407444513
C97: ASH | D97: 1 | E97: 294000 | F97: 0.0008445945946 | G97: 0.0003774810587
B99: LAKESIDE | D99: 101 | E99: 47066948 | F99: 0.08530405405 | G99: 0.06043156925
C100: JN | D100: 39 | E100: 18023600 | F100: 0.03293918919 | G100: 0.02314138643
C101: SL | D101: 57 | E101: 26437848 | F101: 0.04814189189 | G101: 0.03394485324
C102: NF | D102: 1 | E102: 429500 | F102: 0.0008445945946 | G102: 0.0005514561725
C103: ASH | D103: 4 | E103: 2176000 | F103: 0.003378378378 | G103: 0.002793873414
A105: Toiyabe Title | D105: 22 | E105: 9515800 | F105: 0.01858108108 | G105: 0.0122178036
B106: MCCARRAN | D106: 22 | E106: 9515800 | F106: 0.01858108108 | G106: 0.0122178036
C107: JH | D107: 14 | E107: 7133400 | F107: 0.01182432432 | G107: 0.009158923075
C108: UNK | D108: 5 | E108: 1535400 | F108: 0.004222972973 | G108: 0.00197137557
C109: CE | D109: 1 | E109: 415000 | F109: 0.0008445945946 | G109: 0.0005328389094
C110: KM | D110: 2 | E110: 432000 | F110: 0.001689189189 | G110: 0.0005546660454
A112: Western Title | D112: 174 | E112: 75132184 | F112: 0.1469594595 | G112: 0.09646590598
B113: CARSON CITY | D113: 2 | E113: 205000 | F113: 0.001689189189 | G113: 0.0002632095817
C114: AMG | D114: 1 | E114: 85000 | F114: 0.0008445945946 | G114: 0.0001091356802
C115: KDJ | D115: 1 | E115: 120000 | F115: 0.0008445945946 | G115: 0.0001540739015
B117: GARDNERVILLE | D117: 2 | E117: 790000 | F117: 0.001689189189 | G117: 0.001014319852
C118: SLA | D118: 2 | E118: 790000 | F118: 0.001689189189 | G118: 0.001014319852
B120: KIETZKE | D120: 108 | E120: 47510617 | F120: 0.09121621622 | G120: 0.0610012177
C121: JMS | D121: 23 | E121: 8656800 | F121: 0.01942567568 | G121: 0.01111489125
C122: MDD | D122: 20 | E122: 9600237 | F122: 0.01689189189 | G122: 0.01232621642
C123: MLM | D123: 18 | E123: 7152400 | F123: 0.0152027027 | G123: 0.009183318109
C124: PAH | D124: 8 | E124: 7122470 | F124: 0.006756756757 | G124: 0.00914488951
C125: SAB | D125: 23 | E125: 7794950 | F125: 0.01942567568 | G125: 0.01000831965
C126: TEF | D126: 16 | E126: 7183760 | F126: 0.01351351351 | G126: 0.009223582756
B128: SOUTH KIETZKE | D128: 62 | E128: 26626567 | F128: 0.05236486486 | G128: 0.03418715884
C129: ASK | D129: 7 | E129: 2868300 | F129: 0.005912162162 | G129: 0.003682751431
C130: CKL | D130: 12 | E130: 5197000 | F130: 0.01013513514 | G130: 0.006672683884
C131: CRF | D131: 32 | E131: 13307367 | F131: 0.02702702703 | G131: 0.01708598294
C132: MIF | D132: 7 | E132: 4318900 | F132: 0.005912162162 | G132: 0.00554524811
C133: PHB | D133: 4 | E133: 935000 | F133: 0.003378378378 | G133: 0.001200492483
A135: Westminster Title - Las Vegas | D135: 25 | E135: 19207701 | F135: 0.02111486486 | G135: 0.02466171193
B136: LAS VEGAS | D136: 25 | E136: 19207701 | F136: 0.02111486486 | G136: 0.02466171193
C137: TB | D137: 25 | E137: 19207701 | F137: 0.02111486486 | G137: 0.02466171193
A139: Stewart Title | D139: 91 | E139: 36046945 | F139: 0.07685810811 | G139: 0.04628244545
B140: KIETZKE | D140: 1 | E140: 940000 | F140: 0.0008445945946 | G140: 0.001206912228
C141: MLM | D141: 1 | E141: 940000 | F141: 0.0008445945946 | G141: 0.001206912228
B143: PLUMB | D143: 65 | E143: 27458695 | F143: 0.05489864865 | G143: 0.03525556891
C144: UNK | D144: 65 | E144: 27458695 | F144: 0.05489864865 | G144: 0.03525556891
B146: PROFESSIONAL | D146: 25 | E146: 7648250 | F146: 0.02111486486 | G146: 0.00981996431
C147: UNK | D147: 25 | E147: 7648250 | F147: 0.02111486486 | G147: 0.00981996431
A149: Calatlantic Title West | D149: 33 | E149: 15046264 | F149: 0.02787162162 | G149: 0.01931863831
B150: MCCARRAN | D150: 33 | E150: 15046264 | F150: 0.02787162162 | G150: 0.01931863831
C151: LH | D151: 33 | E151: 15046264 | F151: 0.02787162162 | G151: 0.01931863831
A153: Signature Title Company | D153: 21 | E153: 14723355 | F153: 0.01773648649 | G153: 0.01890403957
B154: MINDEN | D154: 1 | E154: 308900 | F154: 0.0008445945946 | G154: 0.0003966119015
C155: NF | D155: 1 | E155: 308900 | F155: 0.0008445945946 | G155: 0.0003966119015
B157: RENO CORPORATE | D157: 19 | E157: 8564455 | F157: 0.0160472973 | G157: 0.01099632497
C158: DP | D158: 15 | E158: 7180455 | F158: 0.01266891892 | G158: 0.009219339304
C159: CG | D159: 1 | E159: 465000 | F159: 0.0008445945946 | G159: 0.0005970363683
C160: HB | D160: 3 | E160: 919000 | F160: 0.002533783784 | G160: 0.001179949296
B162: ZEPHYR | D162: 1 | E162: 5850000 | F162: 0.0008445945946 | G162: 0.007511102698
C163: JML | D163: 1 | E163: 5850000 | F163: 0.0008445945946 | G163: 0.007511102698
A165: Grand Total | D165: 1184 | E165: 778847026.2 | F165: 1 | G165: 1

Sheet LENDER TRACKING
A1: TYPELOAN | B1: (All)
C3: Values
A4: LENDER | B4: TITLE COMPANY | C4: CLOSINGS | D4: DOLLAR VOL. | E4: % OF CLOSINGS | F4: % OF DOLLAR VOL.
A5: ACADEMY MORTGAGE CORPORATION | C5: 1 | D5: 441750 | E5: 0.0008952551477 | F5: 0.001058811298
B6: First Centennial Title | C6: 1 | D6: 441750 | E6: 0.0008952551477 | F6: 0.001058811298
A8: ALL WESTERN MORTGAGE INC | C8: 22 | D8: 6262650 | E8: 0.01969561325 | F8: 0.01501067249
B9: First American Title | C9: 11 | D9: 3052700 | E9: 0.009847806625 | F9: 0.007316883414
B10: First Centennial Title | C10: 4 | D10: 1690050 | E10: 0.003581020591 | F10: 0.004050807093
B11: Ticor Title | C11: 1 | D11: 288000 | E11: 0.0008952551477 | F11: 0.000690294632
B12: Western Title | C12: 1 | D12: 233600 | E12: 0.0008952551477 | F12: 0.000559905646
B13: Stewart Title | C13: 5 | D13: 998300 | E13: 0.004476275739 | F13: 0.002392781705
A15: AMERICAN FINANCIAL NETWORK INC | C15: 1 | D15: 315000 | E15: 0.0008952551477 | F15: 0.0007550097538
B16: First American Title | C16: 1 | D16: 315000 | E16: 0.0008952551477 | F16: 0.0007550097538
A18: AMERICAN PACIFIC MORTGAGE CORPORATION | C18: 8 | D18: 2303510 | E18: 0.007162041182 | F18: 0.005521182597
B19: Acme Title and Escrow | C19: 1 | D19: 409010 | E19: 0.0008952551477 | F19: 0.0009803382203
B20: First American Title | C20: 3 | D20: 765000 | E20: 0.002685765443 | F20: 0.001833595116
B21: First Centennial Title | C21: 2 | D21: 724000 | E21: 0.001790510295 | F21: 0.001735324005
B22: Ticor Title | C22: 1 | D22: 235000 | E22: 0.0008952551477 | F22: 0.0005632612449
B23: Western Title | C23: 1 | D23: 170500 | E23: 0.0008952551477 | F23: 0.0004086640096
A25: AXIA FINANCIAL LLC | C25: 34 | D25: 9519750 | E25: 0.03043867502 | F25: 0.02281747334
B26: First American Title | C26: 3 | D26: 1078600 | E26: 0.002685765443 | F26: 0.002585249271
B27: First Centennial Title | C27: 5 | D27: 882800 | E27: 0.004476275739 | F27: 0.002115944796
B28: Ticor Title | C28: 13 | D28: 3687100 | E28: 0.01163831692 | F28: 0.008837449089
B29: Western Title | C29: 2 | D29: 487500 | E29: 0.001790510295 | F29: 0.001168467476
B30: Stewart Title | C30: 10 | D30: 2889750 | E30: 0.008952551477 | F30: 0.00692631567
B31: Signature Title Company | C31: 1 | D31: 494000 | E31: 0.0008952551477 | F31: 0.001184047042
A33: BAY EQUITY LLC | C33: 14 | D33: 3907473 | E33: 0.01253357207 | F33: 0.009365651516
B34: Acme Title and Escrow | C34: 4 | D34: 1156500 | E34: 0.003581020591 | F34: 0.002771964382
B35: First Centennial Title | C35: 1 | D35: 253473 | E35: 0.0008952551477 | F35: 0.0006075383724
B36: Ticor Title | C36: 6 | D36: 1635000 | E36: 0.005371530886 | F36: 0.003918860151
B37: Stewart Title | C37: 3 | D37: 862500 | E37: 0.002685765443 | F37: 0.002067288612
A39: CALIBER HOME LOANS INC | C39: 32 | D39: 9096600 | E39: 0.02864816473 | F39: 0.02180324358
B40: First American Title | C40: 13 | D40: 3731300 | E40: 0.01163831692 | F40: 0.00894339014
B41: First Centennial Title | C41: 3 | D41: 1035000 | E41: 0.002685765443 | F41: 0.002480746334
B42: Ticor Title | C42: 3 | D42: 783000 | E42: 0.002685765443 | F42: 0.001876738531
B43: Western Title | C43: 13 | D43: 3547300 | E43: 0.01163831692 | F43: 0.00850236857
A45: CARDINAL FINANCIAL COMPANY LIMITED PARTNERSHIP | C45: 25 | D45: 7708990 | E45: 0.02238137869 | F45: 0.01847734172
B46: First American Title | C46: 6 | D46: 1588607 | E46: 0.005371530886 | F46: 0.003807662793
B47: First Centennial Title | C47: 9 | D47: 3118983 | E47: 0.008057296329 | F47: 0.007475754244
B48: Ticor Title | C48: 8 | D48: 2588400 | E48: 0.007162041182 | F48: 0.006204023005
B49: Stewart Title | C49: 2 | D49: 413000 | E49: 0.001790510295 | F49: 0.0009899016772
A51: CITY NATIONAL BANK | C51: 1 | D51: 165000 | E51: 0.0008952551477 | F51: 0.0003954812996
B52: Western Title | C52: 1 | D52: 165000 | E52: 0.0008952551477 | F52: 0.0003954812996
A54: EVERGREEN MONEYSOURCE MORTGAGE COMPANY | C54: 22 | D54: 6228265 | E54: 0.01969561325 | F54: 0.01492825658
B55: First Centennial Title | C55: 4 | D55: 1060000 | E55: 0.003581020591 | F55: 0.002540667743
B56: Ticor Title | C56: 7 | D56: 1798225 | E56: 0.006266786034 | F56: 0.00431008703
B57: Western Title | C57: 9 | D57: 2560250 | E57: 0.008057296329 | F57: 0.006136551499
B58: Stewart Title | C58: 2 | D58: 809790 | E58: 0.001790510295 | F58: 0.001940950313
A60: FAIRWAY INDEPENDENT MORTGAGE CORPORATION | C60: 14 | D60: 3957431 | E60: 0.01253357207 | F60: 0.009485393666
B61: First American Title | C61: 1 | D61: 243000 | E61: 0.0008952551477 | F61: 0.0005824360958
B62: First Centennial Title | C62: 3 | D62: 953500 | E62: 0.002685765443 | F62: 0.00228540254
B63: Ticor Title | C63: 4 | D63: 1128750 | E63: 0.003581020591 | F63: 0.002705451618
B64: Western Title | C64: 6 | D64: 1632181 | E64: 0.005371530886 | F64: 0.003912103412
A66: FINANCE OF AMERICA MORTGAGE LLC | C66: 24 | D66: 6747150 | E66: 0.02148612355 | F66: 0.0161719494
B67: First American Title | C67: 1 | D67: 124000 | E67: 0.0008952551477 | F67: 0.0002972101888
B68: First Centennial Title | C68: 10 | D68: 3101130 | E68: 0.008952551477 | F68: 0.007432963167
B69: Ticor Title | C69: 1 | D69: 107000 | E69: 0.0008952551477 | F69: 0.0002564636306
B70: Toiyabe Title | C70: 1 | D70: 408000 | E70: 0.0008952551477 | F70: 0.0009779173954
B71: Western Title | C71: 1 | D71: 144000 | E71: 0.0008952551477 | F71: 0.000345147316
B72: Stewart Title | C72: 10 | D72: 2863020 | E72: 0.008952551477 | F72: 0.006862247699
A74: FLAGSTAR BANK FSB | C74: 18 | D74: 5957072 | E74: 0.01611459266 | F74: 0.01427824592
B75: First Centennial Title | C75: 4 | D75: 1173000 | E75: 0.003581020591 | F75: 0.002811512512
B76: Ticor Title | C76: 1 | D76: 479000 | E76: 0.0008952551477 | F76: 0.001148094197
B77: Western Title | C77: 12 | D77: 3831072 | E77: 0.01074306177 | F77: 0.009182529293
B78: Stewart Title | C78: 1 | D78: 474000 | E78: 0.0008952551477 | F78: 0.001136109915
A80: GREAT BASIN FEDERAL CREDIT UNION | C80: 8 | D80: 1125600 | E80: 0.007162041182 | F80: 0.00269790152
B81: Western Title | C81: 5 | D81: 1030600 | E81: 0.004476275739 | F81: 0.002470200166
B82: Stewart Title | C82: 3 | D82: 95000 | E82: 0.002685765443 | F82: 0.0002277013543
A84: GREATER NEVADA CREDIT UNION | C84: 1 | D84: 100000 | E84: 0.0008952551477 | F84: 0.0002396856361
B85: First Centennial Title | C85: 1 | D85: 100000 | E85: 0.0008952551477 | F85: 0.0002396856361
A87: GREATER NEVADA MORTGAGE | C87: 43 | D87: 10696431 | E87: 0.03849597135 | F87: 0.02563780868
B88: Acme Title and Escrow | C88: 4 | D88: 1227700 | E88: 0.003581020591 | F88: 0.002942620555
B89: First American Title | C89: 6 | D89: 1832400 | E89: 0.005371530886 | F89: 0.004391999596
B90: First Centennial Title | C90: 12 | D90: 2733150 | E90: 0.01074306177 | F90: 0.006550967964
B91: Ticor Title | C91: 12 | D91: 3135300 | E91: 0.01074306177 | F91: 0.007514863749
B92: Western Title | C92: 3 | D92: 611000 | E92: 0.002685765443 | F92: 0.001464479237
B93: Stewart Title | C93: 6 | D93: 1156881 | E93: 0.005371530886 | F93: 0.002772877584
A95: GUARANTEED RATE INC | C95: 9 | D95: 3354300 | E95: 0.008057296329 | F95: 0.008039775292
B96: Ticor Title | C96: 5 | D96: 2306300 | E96: 0.004476275739 | F96: 0.005527869826
B97: Toiyabe Title | C97: 4 | D97: 1048000 | E97: 0.003581020591 | F97: 0.002511905467
A99: GUILD MORTGAGE COMPANY | C99: 193 | D99: 53599563 | E99: 0.1727842435 | F99: 0.1284704535
B100: Acme Title and Escrow | C100: 4 | D100: 969515 | E100: 0.003581020591 | F100: 0.002323788195
B101: First American Title | C101: 46 | D101: 12866421 | E101: 0.04118173679 | F101: 0.03083896302
B102: First Centennial Title | C102: 32 | D102: 9550529 | E102: 0.02864816473 | F102: 0.02289124619
B103: Ticor Title | C103: 38 | D103: 10715427 | E103: 0.03401969561 | F103: 0.02568333937
B104: Western Title | C104: 44 | D104: 12239907 | E104: 0.0393912265 | F104: 0.02933729895
B105: Stewart Title | C105: 29 | D105: 7257764 | E105: 0.02596239928 | F105: 0.01739581781
A107: HERITAGE BANK OF NEVADA | C107: 5 | D107: 4737500 | E107: 0.004476275739 | F107: 0.01135510701
B108: First American Title | C108: 3 | D108: 4292500 | E108: 0.002685765443 | F108: 0.01028850593
B109: First Centennial Title | C109: 2 | D109: 445000 | E109: 0.001790510295 | F109: 0.001066601081
A111: HOMEOWNERS FINANCIAL GROUP USA LLC | C111: 1 | D111: 217600 | E111: 0.0008952551477 | F111: 0.0005215559442
B112: Stewart Title | C112: 1 | D112: 217600 | E112: 0.0008952551477 | F112: 0.0005215559442
A114: ISERVE RESIDENTIAL LENDING LLC | C114: 6 | D114: 1781650 | E114: 0.005371530886 | F114: 0.004270359136
B115: First Centennial Title | C115: 3 | D115: 950800 | E115: 0.002685765443 | F115: 0.002278931028
B116: Stewart Title | C116: 3 | D116: 830850 | E116: 0.002685765443 | F116: 0.001991428108
A118: JPMORGAN CHASE BANK NA | C118: 2 | D118: 950000 | E118: 0.001790510295 | F118: 0.002277013543
B119: First American Title | C119: 1 | D119: 350000 | E119: 0.0008952551477 | F119: 0.0008388997264
B120: First Centennial Title | C120: 1 | D120: 600000 | E120: 0.0008952551477 | F120: 0.001438113817
A122: LOANDEPOT.COM LLC | C122: 4 | D122: 1225117 | E122: 0.003581020591 | F122: 0.002936429475
B123: First American Title | C123: 3 | D123: 787117 | E123: 0.002685765443 | F123: 0.001886606388
B124: First Centennial Title | C124: 1 | D124: 438000 | E124: 0.0008952551477 | F124: 0.001049823086
A126: MANN MORTGAGE LLC | C126: 6 | D126: 1588868 | E126: 0.005371530886 | F126: 0.003808288373
B127: First Centennial Title | C127: 3 | D127: 723144 | E127: 0.002685765443 | F127: 0.001733272296
B128: Stewart Title | C128: 2 | D128: 712724 | E128: 0.001790510295 | F128: 0.001708297053
B129: Signature Title Company | C129: 1 | D129: 153000 | E129: 0.0008952551477 | F129: 0.0003667190233
A131: MASON MCDUFFIE MORTGAGE CORPORATION | C131: 1 | D131: 283500 | E131: 0.0008952551477 | F131: 0.0006795087784
B132: Western Title | C132: 1 | D132: 283500 | E132: 0.0008952551477 | F132: 0.0006795087784
A134: MEADOWS BANK | C134: 1 | D134: 5887500 | E134: 0.0008952551477 | F134: 0.01411149183
B135: First American Title | C135: 1 | D135: 5887500 | E135: 0.0008952551477 | F135: 0.01411149183
A137: MORGAN STANLEY PRIVATE BANK NATIONAL ASSOCIATION | C137: 1 | D137: 1280000 | E137: 0.0008952551477 | F137: 0.003067976142
B138: First Centennial Title | C138: 1 | D138: 1280000 | E138: 0.0008952551477 | F138: 0.003067976142
A140: MOUNTAIN AMERICA FEDERAL CREDIT UNION | C140: 7 | D140: 2032732 | E140: 0.006266786034 | F140: 0.004872166625
B141: First American Title | C141: 1 | D141: 310000 | E141: 0.0008952551477 | F141: 0.000743025472
B142: First Centennial Title | C142: 5 | D142: 1303732 | E142: 0.004476275739 | F142: 0.003124858337
B143: Western Title | C143: 1 | D143: 419000 | E143: 0.0008952551477 | F143: 0.001004282815
A145: NEVADA STATE BANK | C145: 2 | D145: 597313 | E145: 0.001790510295 | F145: 0.001431673464
B146: Ticor Title | C146: 1 | D146: 360000 | E146: 0.0008952551477 | F146: 0.00086286829
B147: Stewart Title | C147: 1 | D147: 237313 | E147: 0.0008952551477 | F147: 0.0005688051736
A149: NEW AMERICAN FUNDING | C149: 50 | D149: 16083847 | E149: 0.04476275739 | F149: 0.03855067099
B150: Acme Title and Escrow | C150: 3 | D150: 853300 | E150: 0.002685765443 | F150: 0.002045237533
B151: First American Title | C151: 16 | D151: 6845704 | E151: 0.01432408236 | F151: 0.01640816918
B152: First Centennial Title | C152: 5 | D152: 1546519 | E152: 0.004476275739 | F152: 0.003706783903
B153: Ticor Title | C153: 4 | D153: 1375000 | E153: 0.003581020591 | F153: 0.003295677497
B154: Toiyabe Title | C154: 4 | D154: 1117554 | E154: 0.003581020591 | F154: 0.002678616414
B155: Western Title | C155: 8 | D155: 1798154 | E155: 0.007162041182 | F155: 0.004309916853
B156: Stewart Title | C156: 10 | D156: 2547616 | E156: 0.008952551477 | F156: 0.006106269615
A158: ON Q FINANCIAL INC | C158: 20 | D158: 5574900 | E158: 0.01790510295 | F158: 0.01336223453
B159: Acme Title and Escrow | C159: 2 | D159: 453000 | E159: 0.001790510295 | F159: 0.001085775932
B160: First Centennial Title | C160: 7 | D160: 2157900 | E160: 0.006266786034 | F160: 0.005172176342
B161: Ticor Title | C161: 2 | D161: 371000 | E161: 0.001790510295 | F161: 0.00088923371
B162: Western Title | C162: 9 | D162: 2593000 | E162: 0.008057296329 | F162: 0.006215048545
A164: ONE NEVADA CREDIT UNION | C164: 7 | D164: 1721850 | E164: 0.006266786034 | F164: 0.004127027125
B165: First Centennial Title | C165: 6 | D165: 1515850 | E165: 0.005371530886 | F165: 0.003633274715
B166: Stewart Title | C166: 1 | D166: 206000 | E166: 0.0008952551477 | F166: 0.0004937524104
A168: ONETRUST HOME LOANS | C168: 18 | D168: 5087818 | E168: 0.01611459266 | F168: 0.01219476894
B169: Acme Title and Escrow | C169: 7 | D169: 1711918 | E169: 0.006266786034 | F169: 0.004103221548
B170: First American Title | C170: 1 | D170: 377200 | E170: 0.0008952551477 | F170: 0.0009040942194
B171: First Centennial Title | C171: 1 | D171: 305200 | E171: 0.0008952551477 | F171: 0.0007315205614
B172: Ticor Title | C172: 1 | D172: 255000 | E172: 0.0008952551477 | F172: 0.0006111983721
B173: Western Title | C173: 3 | D173: 900500 | E173: 0.002685765443 | F173: 0.002158369153
B174: Signature Title Company | C174: 5 | D174: 1538000 | E174: 0.004476275739 | F174: 0.003686365083
A176: PARAMOUNT RESIDENTIAL MORTGAGE GROUP INC | C176: 2 | D176: 401500 | E176: 0.001790510295 | F176: 0.000962337829
B177: First Centennial Title | C177: 2 | D177: 401500 | E177: 0.001790510295 | F177: 0.000962337829
A179: PRIMELENDING | C179: 32 | D179: 8903234 | E179: 0.02864816473 | F179: 0.02133977305
B180: Acme Title and Escrow | C180: 4 | D180: 1296434 | E180: 0.003581020591 | F180: 0.00310736608
B181: First Centennial Title | C181: 10 | D181: 2607200 | E181: 0.008952551477 | F181: 0.006249083905
B182: Ticor Title | C182: 3 | D182: 1017000 | E182: 0.002685765443 | F182: 0.002437602919
B183: Western Title | C183: 4 | D183: 1111000 | E183: 0.003581020591 | F183: 0.002662907417
B184: Stewart Title | C184: 11 | D184: 2871600 | E184: 0.009847806625 | F184: 0.006882812727
A186: PROVIDENT FUNDING ASSOCIATES LP | C186: 14 | D186: 3466800 | E186: 0.01253357207 | F186: 0.008309421633
B187: Western Title | C187: 14 | D187: 3466800 | E187: 0.01253357207 | F187: 0.008309421633
A189: RESIDENTIAL BANCORP | C189: 2 | D189: 730250 | E189: 0.001790510295 | F189: 0.001750304358
B190: Acme Title and Escrow | C190: 1 | D190: 281250 | E190: 0.0008952551477 | F190: 0.0006741158516
B191: Ticor Title | C191: 1 | D191: 449000 | E191: 0.0008952551477 | F191: 0.001076188506
A193: SIERRA PACIFIC FEDERAL CREDIT UNION | C193: 2 | D193: 145000 | E193: 0.001790510295 | F193: 0.0003475441724
B194: Ticor Title | C194: 1 | D194: 95000 | E194: 0.0008952551477 | F194: 0.0002277013543
B195: Stewart Title | C195: 1 | D195: 50000 | E195: 0.0008952551477 | F195: 0.0001198428181
A197: SIERRA PACIFIC MORTGAGE COMPANY INC | C197: 4 | D197: 1375500 | E197: 0.003581020591 | F197: 0.003296875925
B198: First American Title | C198: 1 | D198: 378000 | E198: 0.0008952551477 | F198: 0.0009060117045
B199: First Centennial Title | C199: 1 | D199: 380000 | E199: 0.0008952551477 | F199: 0.0009108054172
B200: Ticor Title | C200: 1 | D200: 254000 | E200: 0.0008952551477 | F200: 0.0006088015157
B201: Western Title | C201: 1 | D201: 363500 | E201: 0.0008952551477 | F201: 0.0008712572873
A203: STEARNS LENDING LLC | C203: 2 | D203: 524370 | E203: 0.001790510295 | F203: 0.00125683957
B204: First American Title | C204: 2 | D204: 524370 | E204: 0.001790510295 | F204: 0.00125683957
A206: SUMMIT FUNDING INC | C206: 27 | D206: 7673519 | E206: 0.02417188899 | F206: 0.01839232283
B207: First American Title | C207: 9 | D207: 1946900 | E207: 0.008057296329 | F207: 0.00466643965
B208: First Centennial Title | C208: 8 | D208: 2416941 | E208: 0.007162041182 | F208: 0.00579306041
B209: Ticor Title | C209: 5 | D209: 1619754 | E209: 0.004476275739 | F209: 0.003882317678
B210: Western Title | C210: 4 | D210: 1329924 | E210: 0.003581020591 | F210: 0.003187636799
B211: Stewart Title | C211: 1 | D211: 360000 | E211: 0.0008952551477 | F211: 0.00086286829
A213: SYNERGY HOME MORTGAGE LLC | C213: 17 | D213: 4193332 | E213: 0.01521933751 | F213: 0.01005081448
B214: First Centennial Title | C214: 16 | D214: 3951999 | E214: 0.01432408236 | F214: 0.009472373943
B215: Western Title | C215: 1 | D215: 241333 | E215: 0.0008952551477 | F215: 0.0005784405362
A217: UMPQUA BANK | C217: 17 | D217: 4686363 | E217: 0.01521933751 | F217: 0.01123253897
B218: First American Title | C218: 2 | D218: 175100 | E218: 0.001790510295 | F218: 0.0004196895488
B219: First Centennial Title | C219: 2 | D219: 400001 | E219: 0.001790510295 | F219: 0.0009587449413
B220: Ticor Title | C220: 13 | D220: 4111262 | E220: 0.01163831692 | F220: 0.009854104477
A222: UNITED FEDERAL CREDIT UNION | C222: 50 | D222: 13365497.02 | E222: 0.04476275739 | F222: 0.03203517655
B223: First Centennial Title | C223: 34 | D223: 8895800 | E223: 0.03043867502 | F223: 0.02132195482
B224: Ticor Title | C224: 1 | D224: 303000 | E224: 0.0008952551477 | F224: 0.0007262474774
B225: Western Title | C225: 2 | D225: 429500 | E225: 0.001790510295 | F225: 0.001029449807
B226: Stewart Title | C226: 13 | D226: 3737197.02 | E226: 0.01163831692 | F226: 0.00895752445
A228: UNITED WHOLESALE MORTGAGE | C228: 48 | D228: 14565660 | E228: 0.04297224709 | F228: 0.03491179483
B229: First American Title | C229: 7 | D229: 2040550 | E229: 0.006266786034 | F229: 0.004890905248
B230: First Centennial Title | C230: 10 | D230: 2412914 | E230: 0.008952551477 | F230: 0.00578340827
B231: Ticor Title | C231: 3 | D231: 1128000 | E231: 0.002685765443 | F231: 0.002703653975
B232: Toiyabe Title | C232: 3 | D232: 920700 | E232: 0.002685765443 | F232: 0.002206785652
B233: Western Title | C233: 18 | D233: 6207611 | E233: 0.01611459266 | F233: 0.01487875191
B234: Stewart Title | C234: 7 | D234: 1855885 | E234: 0.006266786034 | F234: 0.004448289768
A236: US BANK NA | C236: 9 | D236: 5438484 | E236: 0.008057296329 | F236: 0.01303526497
B237: First Centennial Title | C237: 3 | D237: 2658984 | E237: 0.002685765443 | F237: 0.006373202715
B238: Stewart Title | C238: 5 | D238: 2408000 | E238: 0.004476275739 | F238: 0.005771630118
B239: Calatlantic Title West | C239: 1 | D239: 371500 | E239: 0.0008952551477 | F239: 0.0008904321382
A241: WELLS FARGO BANK NA | C241: 51 | D241: 12729413 | E241: 0.04565801253 | F241: 0.03051057452
B242: Acme Title and Escrow | C242: 2 | D242: 419202 | E242: 0.001790510295 | F242: 0.00100476698
B243: First American Title | C243: 9 | D243: 2412700 | E243: 0.008057296329 | F243: 0.005782895343
B244: First Centennial Title | C244: 11 | D244: 3995300 | E244: 0.009847806625 | F244: 0.00957616022
B245: Ticor Title | C245: 2 | D245: 384800 | E245: 0.001790510295 | F245: 0.0009223103278
B246: Western Title | C246: 13 | D246: 3040000 | E246: 0.01163831692 | F246: 0.007286443338
B247: Stewart Title | C247: 14 | D247: 2477411 | E247: 0.01253357207 | F247: 0.005937998315
... 219 more rows

Sheet BUILDER TRACKING
A1: BUILDER TRACKING
A2: ='OVERALL STATS'!A2 -> Reporting Period: AUGUST, 2020
A4: BUILDER | B4: CLOSINGS | C4: DOLLARVOL | D4: AVERAGE | E4: % OF CLOSINGS | F4: % OF $$$ VOLUME
A5: DR HORTON INC | B5: 37 | C5: 13357074 | D5: 361002 | E5: =Table2[[#This Row],[CLOSINGS]]/$B$37 -> 0.2176470588 | F5: =Table2[[#This Row],[DOLLARVOL]]/$C$37 -> 0.1628275076
A6: LENNAR RENO LLC | B6: 32 | C6: 14616264 | D6: 456758.25 | E6: =Table2[[#This Row],[CLOSINGS]]/$B$37 -> 0.1882352941 | F6: =Table2[[#This Row],[DOLLARVOL]]/$C$37 -> 0.1781774839
A7: TOLL NV LIMITED PARTNERSHIP | B7: 20 | C7: 13835300 | D7: 691765 | E7: =Table2[[#This Row],[CLOSINGS]]/$B$37 -> 0.1176470588 | F7: =Table2[[#This Row],[DOLLARVOL]]/$C$37 -> 0.1686572535
A8: SILVERADO EAGLE CANYON LLC | B8: 7 | C8: 3268738 | D8: 466962.5714 | E8: =Table2[[#This Row],[CLOSINGS]]/$B$37 -> 0.04117647059 | F8: =Table2[[#This Row],[DOLLARVOL]]/$C$37 -> 0.03984708489
A9: RANCHO HILLS BY DESERT WIND LP | B9: 7 | C9: 1976939 | D9: 282419.8571 | E9: =Table2[[#This Row],[CLOSINGS]]/$B$37 -> 0.04117647059 | F9: =Table2[[#This Row],[DOLLARVOL]]/$C$37 -> 0.02409959322
A10: JC BLACKSTONE LLC; BLACKSTONE JC LLC | B10: 6 | C10: 2760261.5 | D10: 460043.5833 | E10: =Table2[[#This Row],[CLOSINGS]]/$B$37 -> 0.03529411765 | F10: =Table2[[#This Row],[DOLLARVOL]]/$C$37 -> 0.03364857456
A11: WVN PHASE 21 LLC | B11: 5 | C11: 1934337 | D11: 386867.4 | E11: =Table2[[#This Row],[CLOSINGS]]/$B$37 -> 0.02941176471 | F11: =Table2[[#This Row],[DOLLARVOL]]/$C$37 -> 0.02358025961
A12: QUEST RENO LLC | B12: 4 | C12: 2184529 | D12: 546132.25 | E12: =Table2[[#This Row],[CLOSINGS]]/$B$37 -> 0.02352941176 | F12: =Table2[[#This Row],[DOLLARVOL]]/$C$37 -> 0.02663018954
A13: TERRENO DEVELOPMENT LLC | B13: 4 | C13: 2067117 | D13: 516779.25 | E13: =Table2[[#This Row],[CLOSINGS]]/$B$37 -> 0.02352941176 | F13: =Table2[[#This Row],[DOLLARVOL]]/$C$37 -> 0.02519889528
A14: PARADISO COMMUNITIES LLC | B14: 4 | C14: 1540905 | D14: 385226.25 | E14: =Table2[[#This Row],[CLOSINGS]]/$B$37 -> 0.02352941176 | F14: =Table2[[#This Row],[DOLLARVOL]]/$C$37 -> 0.01878418287
A15: NORTHERN NEVADA HOMES LLC | B15: 4 | C15: 1486923 | D15: 371730.75 | E15: =Table2[[#This Row],[CLOSINGS]]/$B$37 -> 0.02352941176 | F15: =Table2[[#This Row],[DOLLARVOL]]/$C$37 -> 0.01812612299
A16: FALCON RIDGE BY DESERT WIND LP | B16: 4 | C16: 1239378 | D16: 309844.5 | E16: =Table2[[#This Row],[CLOSINGS]]/$B$37 -> 0.02352941176 | F16: =Table2[[#This Row],[DOLLARVOL]]/$C$37 -> 0.01510846093
A17: JC NV FLATS LLC | B17: 4 | C17: 1188151 | D17: 297037.75 | E17: =Table2[[#This Row],[CLOSINGS]]/$B$37 -> 0.02352941176 | F17: =Table2[[#This Row],[DOLLARVOL]]/$C$37 -> 0.01448398549
A18: TOLL NORTH RENO LLC | B18: 3 | C18: 3059193 | D18: 1019731 | E18: =Table2[[#This Row],[CLOSINGS]]/$B$37 -> 0.01764705882 | F18: =Table2[[#This Row],[DOLLARVOL]]/$C$37 -> 0.03729265642
A19: SBE 64 POINTE LLC | B19: 3 | C19: 2456964 | D19: 818988 | E19: =Table2[[#This Row],[CLOSINGS]]/$B$37 -> 0.01764705882 | F19: =Table2[[#This Row],[DOLLARVOL]]/$C$37 -> 0.02995126959
A20: RYDER SHADOW LLC | B20: 3 | C20: 1813555 | D20: 604518.3333 | E20: =Table2[[#This Row],[CLOSINGS]]/$B$37 -> 0.01764705882 | F20: =Table2[[#This Row],[DOLLARVOL]]/$C$37 -> 0.02210788385
A21: JC BLACKSTONE LLC | B21: 3 | C21: 1338674 | D21: 446224.6667 | E21: =Table2[[#This Row],[CLOSINGS]]/$B$37 -> 0.01764705882 | F21: =Table2[[#This Row],[DOLLARVOL]]/$C$37 -> 0.01631891467
A22: TOLL SOUTH RENO LLC | B22: 2 | C22: 2313208 | D22: 1156604 | E22: =Table2[[#This Row],[CLOSINGS]]/$B$37 -> 0.01176470588 | F22: =Table2[[#This Row],[DOLLARVOL]]/$C$37 -> 0.02819883256
A23: WEDGE MEADOWS HOMES LLC | B23: 2 | C23: 1385077 | D23: 692538.5 | E23: =Table2[[#This Row],[CLOSINGS]]/$B$37 -> 0.01176470588 | F23: =Table2[[#This Row],[DOLLARVOL]]/$C$37 -> 0.01688458383
A24: TL BRIDLE GATE LP | B24: 2 | C24: 1353228 | D24: 676614 | E24: =Table2[[#This Row],[CLOSINGS]]/$B$37 -> 0.01176470588 | F24: =Table2[[#This Row],[DOLLARVOL]]/$C$37 -> 0.01649633314
A25: RYDER SIERRA SHADOWS LLC | B25: 2 | C25: 962977 | D25: 481488.5 | E25: =Table2[[#This Row],[CLOSINGS]]/$B$37 -> 0.01176470588 | F25: =Table2[[#This Row],[DOLLARVOL]]/$C$37 -> 0.01173903392
A26: SILVERADO CYAN LLC | B26: 2 | C26: 800072 | D26: 400036 | E26: =Table2[[#This Row],[CLOSINGS]]/$B$37 -> 0.01176470588 | F26: =Table2[[#This Row],[DOLLARVOL]]/$C$37 -> 0.009753163728
A27: PINE BLUFF PROPERTIES LLC | B27: 1 | C27: 1048091 | D27: 1048091 | E27: =Table2[[#This Row],[CLOSINGS]]/$B$37 -> 0.005882352941 | F27: =Table2[[#This Row],[DOLLARVOL]]/$C$37 -> 0.01277660401
A28: SUNSET JENUANE 2016 LLC | B28: 1 | C28: 766016 | D28: 766016 | E28: =Table2[[#This Row],[CLOSINGS]]/$B$37 -> 0.005882352941 | F28: =Table2[[#This Row],[DOLLARVOL]]/$C$37 -> 0.009338008912
A29: WEST COAST HOME BUILDERS INC | B29: 1 | C29: 482730 | D29: 482730 | E29: =Table2[[#This Row],[CLOSINGS]]/$B$37 -> 0.005882352941 | F29: =Table2[[#This Row],[DOLLARVOL]]/$C$37 -> 0.00588465129
A30: SILVER MEADOWS HOMES LLC | B30: 1 | C30: 466303 | D30: 466303 | E30: =Table2[[#This Row],[CLOSINGS]]/$B$37 -> 0.005882352941 | F30: =Table2[[#This Row],[DOLLARVOL]]/$C$37 -> 0.005684400287
A31: EAGLE CANYON SOUTH LLC | B31: 1 | C31: 445570 | D31: 445570 | E31: =Table2[[#This Row],[CLOSINGS]]/$B$37 -> 0.005882352941 | F31: =Table2[[#This Row],[DOLLARVOL]]/$C$37 -> 0.005431657604
A32: WINGFIELD PROPERTIES LLC | B32: 1 | C32: 435000 | D32: 435000 | E32: =Table2[[#This Row],[CLOSINGS]]/$B$37 -> 0.005882352941 | F32: =Table2[[#This Row],[DOLLARVOL]]/$C$37 -> 0.005302805525
A33: HOLT ISAAC TIMOTHY | B33: 1 | C33: 430000 | D33: 430000 | E33: =Table2[[#This Row],[CLOSINGS]]/$B$37 -> 0.005882352941 | F33: =Table2[[#This Row],[DOLLARVOL]]/$C$37 -> 0.005241853737
A34: WEST COAST HOME BUILDERS INC; WEST COAST BUILDERS INC | B34: 1 | C34: 415000 | D34: 415000 | E34: =Table2[[#This Row],[CLOSINGS]]/$B$37 -> 0.005882352941 | F34: =Table2[[#This Row],[DOLLARVOL]]/$C$37 -> 0.005058998374
A35: REGENCY PARK HOMES INC | B35: 1 | C35: 374474 | D35: 374474 | E35: =Table2[[#This Row],[CLOSINGS]]/$B$37 -> 0.005882352941 | F35: =Table2[[#This Row],[DOLLARVOL]]/$C$37 -> 0.004564971945
A36: CATAMOUNT PROPERTIES 2018 LLC | B36: 1 | C36: 230000 | D36: 230000 | E36: =Table2[[#This Row],[CLOSINGS]]/$B$37 -> 0.005882352941 | F36: =Table2[[#This Row],[DOLLARVOL]]/$C$37 -> 0.002803782232
A37: GRAND TOTAL | B37: =SUM(B5:B36) -> 170 | C37: =SUM(C5:C36) -> 82032048.5 | E37: =SUM(E5:E36) -> 1 | F37: =SUM(F5:F36) -> 1

Sheet SALES_LIST (hidden)
A1: FULLNAME | B1: RECBY | C1: BRANCH | D1: EO | E1: PROPTYPE | F1: DOCNUM | G1: AMOUNT | H1: SUB | I1: INSURED | J1: RECDATE | K1: Last Row: | L1: 1185
A2: Acme Title and Escrow | B2: ACT | C2: LANDER | D2: RA | E2: SINGLE FAM RES. | F2: 5067178 | G2: 350000 | H2: NO | I2: YES | J2: 44062
A3: Acme Title and Escrow | B3: ACT | C3: LANDER | D3: RA | E3: SINGLE FAM RES. | F3: 5065377 | G3: 417000 | H3: NO | I3: YES | J3: 44057
A4: Acme Title and Escrow | B4: ACT | C4: LANDER | D4: LTE | E4: SINGLE FAM RES. | F4: 5069896 | G4: 312000 | H4: NO | I4: YES | J4: 44069
A5: Acme Title and Escrow | B5: ACT | C5: LANDER | D5: YC | E5: CONDO/TWNHSE | F5: 5066031 | G5: 229900 | H5: NO | I5: YES | J5: 44060
A6: Acme Title and Escrow | B6: ACT | C6: LANDER | D6: LTE | E6: SINGLE FAM RES. | F6: 5070182 | G6: 500000 | H6: NO | I6: YES | J6: 44070
A7: Acme Title and Escrow | B7: ACT | C7: LANDER | D7: LTE | E7: CONDO/TWNHSE | F7: 5061816 | G7: 410000 | H7: NO | I7: YES | J7: 44048
A8: Acme Title and Escrow | B8: ACT | C8: LANDER | D8: RA | E8: CONDO/TWNHSE | F8: 5061895 | G8: 495000 | H8: NO | I8: YES | J8: 44048
A9: Acme Title and Escrow | B9: ACT | C9: LANDER | D9: LTE | E9: SINGLE FAM RES. | F9: 5064602 | G9: 329000 | H9: NO | I9: YES | J9: 44055
A10: Acme Title and Escrow | B10: ACT | C10: LANDER | D10: RA | E10: SINGLE FAM RES. | F10: 5068648 | G10: 361000 | H10: NO | I10: YES | J10: 44067
A11: Acme Title and Escrow | B11: ACT | C11: LANDER | D11: RA | E11: SINGLE FAM RES. | F11: 5066705 | G11: 375000 | H11: NO | I11: YES | J11: 44061
A12: Acme Title and Escrow | B12: ACT | C12: LANDER | D12: YC | E12: SINGLE FAM RES. | F12: 5064780 | G12: 370000 | H12: NO | I12: YES | J12: 44056
A13: Acme Title and Escrow | B13: ACT | C13: LANDER | D13: YC | E13: MOBILE HOME | F13: 5064051 | G13: 245000 | H13: NO | I13: YES | J13: 44054
A14: Acme Title and Escrow | B14: ACT | C14: LANDER | D14: YC | E14: SINGLE FAM RES. | F14: 5070571 | G14: 324000 | H14: NO | I14: YES | J14: 44071
A15: Acme Title and Escrow | B15: ACT | C15: LANDER | D15: YC | E15: SINGLE FAM RES. | F15: 5068367 | G15: 445000 | H15: NO | I15: YES | J15: 44067
A16: Acme Title and Escrow | B16: ACT | C16: LANDER | D16: LTE | E16: VACANT LAND | F16: 5070642 | G16: 61750 | H16: NO | I16: YES | J16: 44071
A17: Acme Title and Escrow | B17: ACT | C17: LANDER | D17: YC | E17: SINGLE FAM RES. | F17: 5062311 | G17: 307000 | H17: NO | I17: YES | J17: 44049
A18: Acme Title and Escrow | B18: ACT | C18: LANDER | D18: RA | E18: SINGLE FAM RES. | F18: 5067654 | G18: 530000 | H18: NO | I18: YES | J18: 44063
A19: Acme Title and Escrow | B19: ACT | C19: LANDER | D19: LTE | E19: SINGLE FAM RES. | F19: 5060904 | G19: 353000 | H19: NO | I19: YES | J19: 44046
A20: Acme Title and Escrow | B20: ACT | C20: LANDER | D20: LTE | E20: SINGLE FAM RES. | F20: 5070868 | G20: 290000 | H20: NO | I20: YES | J20: 44071
A21: Acme Title and Escrow | B21: ACT | C21: LANDER | D21: YC | E21: VACANT LAND | F21: 5067771 | G21: 100000 | H21: NO | I21: YES | J21: 44064
A22: Acme Title and Escrow | B22: ACT | C22: LANDER | D22: RA | E22: CONDO/TWNHSE | F22: 5060809 | G22: 349000 | H22: NO | I22: YES | J22: 44046
A23: Acme Title and Escrow | B23: ACT | C23: LANDER | D23: RA | E23: SINGLE FAM RES. | F23: 5067535 | G23: 426000 | H23: NO | I23: YES | J23: 44063
A24: Acme Title and Escrow | B24: ACT | C24: LANDER | D24: RA | E24: SINGLE FAM RES. | F24: 5067996 | G24: 445000 | H24: NO | I24: YES | J24: 44064
A25: Acme Title and Escrow | B25: ACT | C25: LANDER | D25: YC | E25: VACANT LAND | F25: 5067497 | G25: 65000 | H25: NO | I25: YES | J25: 44063
A26: Acme Title and Escrow | B26: ACT | C26: LANDER | D26: LTE | E26: VACANT LAND | F26: 5070708 | G26: 53250 | H26: NO | I26: YES | J26: 44071
A27: Acme Title and Escrow | B27: ACT | C27: LANDER | D27: RA | E27: SINGLE FAM RES. | F27: 5067467 | G27: 320000 | H27: NO | I27: YES | J27: 44063
A28: Acme Title and Escrow | B28: ACT | C28: LANDER | D28: YC | E28: SINGLE FAM RES. | F28: 5070786 | G28: 340000 | H28: NO | I28: YES | J28: 44071
A29: Calatlantic Title West | B29: CAL | C29: MCCARRAN | D29: LH | E29: SINGLE FAM RES. | F29: 5070871 | G29: 424950 | H29: YES | I29: YES | J29: 44071
A30: Calatlantic Title West | B30: CAL | C30: MCCARRAN | D30: LH | E30: SINGLE FAM RES. | F30: 5065305 | G30: 340950 | H30: YES | I30: YES | J30: 44057
A31: Calatlantic Title West | B31: CAL | C31: MCCARRAN | D31: LH | E31: SINGLE FAM RES. | F31: 5061741 | G31: 432430 | H31: YES | I31: YES | J31: 44048
A32: Calatlantic Title West | B32: CAL | C32: MCCARRAN | D32: LH | E32: SINGLE FAM RES. | F32: 5069769 | G32: 324683 | H32: YES | I32: YES | J32: 44069
A33: Calatlantic Title West | B33: CAL | C33: MCCARRAN | D33: LH | E33: SINGLE FAM RES. | F33: 5070098 | G33: 430000 | H33: YES | I33: YES | J33: 44070
A34: Calatlantic Title West | B34: CAL | C34: MCCARRAN | D34: LH | E34: SINGLE FAM RES. | F34: 5070164 | G34: 429950 | H34: YES | I34: YES | J34: 44070
A35: Calatlantic Title West | B35: CAL | C35: MCCARRAN | D35: LH | E35: SINGLE FAM RES. | F35: 5070196 | G35: 451075 | H35: YES | I35: YES | J35: 44070
A36: Calatlantic Title West | B36: CAL | C36: MCCARRAN | D36: LH | E36: SINGLE FAM RES. | F36: 5070538 | G36: 399950 | H36: YES | I36: YES | J36: 44071
A37: Calatlantic Title West | B37: CAL | C37: MCCARRAN | D37: LH | E37: SINGLE FAM RES. | F37: 5062376 | G37: 468267 | H37: YES | I37: YES | J37: 44049
A38: Calatlantic Title West | B38: CAL | C38: MCCARRAN | D38: LH | E38: SINGLE FAM RES. | F38: 5064262 | G38: 369950 | H38: YES | I38: YES | J38: 44055
A39: Calatlantic Title West | B39: CAL | C39: MCCARRAN | D39: LH | E39: SINGLE FAM RES. | F39: 5064085 | G39: 486508 | H39: YES | I39: YES | J39: 44054
A40: Calatlantic Title West | B40: CAL | C40: MCCARRAN | D40: LH | E40: SINGLE FAM RES. | F40: 5071406 | G40: 439421 | H40: YES | I40: YES | J40: 44074
A41: Calatlantic Title West | B41: CAL | C41: MCCARRAN | D41: LH | E41: SINGLE FAM RES. | F41: 5070735 | G41: 420950 | H41: YES | I41: YES | J41: 44071
A42: Calatlantic Title West | B42: CAL | C42: MCCARRAN | D42: LH | E42: SINGLE FAM RES. | F42: 5069765 | G42: 439950 | H42: YES | I42: YES | J42: 44069
A43: Calatlantic Title West | B43: CAL | C43: MCCARRAN | D43: LH | E43: SINGLE FAM RES. | F43: 5063539 | G43: 547511 | H43: YES | I43: YES | J43: 44053
A44: Calatlantic Title West | B44: CAL | C44: MCCARRAN | D44: LH | E44: SINGLE FAM RES. | F44: 5064927 | G44: 398810 | H44: YES | I44: YES | J44: 44056
A45: Calatlantic Title West | B45: CAL | C45: MCCARRAN | D45: LH | E45: SINGLE FAM RES. | F45: 5066085 | G45: 651951 | H45: YES | I45: YES | J45: 44060
A46: Calatlantic Title West | B46: CAL | C46: MCCARRAN | D46: LH | E46: SINGLE FAM RES. | F46: 5065505 | G46: 599950 | H46: YES | I46: YES | J46: 44057
A47: Calatlantic Title West | B47: CAL | C47: MCCARRAN | D47: LH | E47: SINGLE FAM RES. | F47: 5067439 | G47: 493950 | H47: YES | I47: YES | J47: 44063
A48: Calatlantic Title West | B48: CAL | C48: MCCARRAN | D48: LH | E48: SINGLE FAM RES. | F48: 5066170 | G48: 716160 | H48: YES | I48: YES | J48: 44060
A49: Calatlantic Title West | B49: CAL | C49: MCCARRAN | D49: LH | E49: SINGLE FAM RES. | F49: 5067495 | G49: 385298 | H49: YES | I49: YES | J49: 44063
A50: Calatlantic Title West | B50: CAL | C50: MCCARRAN | D50: LH | E50: SINGLE FAM RES. | F50: 5067551 | G50: 390000 | H50: YES | I50: YES | J50: 44063
A51: Calatlantic Title West | B51: CAL | C51: MCCARRAN | D51: LH | E51: SINGLE FAM RES. | F51: 5069082 | G51: 530602 | H51: YES | I51: YES | J51: 44068
A52: Calatlantic Title West | B52: CAL | C52: MCCARRAN | D52: LH | E52: SINGLE FAM RES. | F52: 5069084 | G52: 409950 | H52: YES | I52: YES | J52: 44068
A53: Calatlantic Title West | B53: CAL | C53: MCCARRAN | D53: LH | E53: SINGLE FAM RES. | F53: 5066700 | G53: 411448 | H53: YES | I53: YES | J53: 44061
A54: Calatlantic Title West | B54: CAL | C54: MCCARRAN | D54: LH | E54: SINGLE FAM RES. | F54: 5069087 | G54: 347219 | H54: YES | I54: YES | J54: 44068
A55: Calatlantic Title West | B55: CAL | C55: MCCARRAN | D55: LH | E55: SINGLE FAM RES. | F55: 5069106 | G55: 382495 | H55: YES | I55: YES | J55: 44068
A56: Calatlantic Title West | B56: CAL | C56: MCCARRAN | D56: LH | E56: SINGLE FAM RES. | F56: 5071609 | G56: 469950 | H56: YES | I56: YES | J56: 44074
A57: Calatlantic Title West | B57: CAL | C57: MCCARRAN | D57: LH | E57: SINGLE FAM RES. | F57: 5068038 | G57: 439633 | H57: YES | I57: YES | J57: 44064
A58: Calatlantic Title West | B58: CAL | C58: MCCARRAN | D58: LH | E58: SINGLE FAM RES. | F58: 5069731 | G58: 390128 | H58: YES | I58: YES | J58: 44069
A59: Calatlantic Title West | B59: CAL | C59: MCCARRAN | D59: LH | E59: SINGLE FAM RES. | F59: 5068059 | G59: 384730 | H59: YES | I59: YES | J59: 44064
A60: Calatlantic Title West | B60: CAL | C60: MCCARRAN | D60: LH | E60: SINGLE FAM RES. | F60: 5071745 | G60: 737495 | H60: YES | I60: YES | J60: 44074
A61: Calatlantic Title West | B61: CAL | C61: MCCARRAN | D61: LH | E61: SINGLE FAM RES. | F61: 5061469 | G61: 499950 | H61: YES | I61: YES | J61: 44047
A62: DHI Title of Nevada | B62: DHI | C62: LONGLEY | D62: N/A | E62: SINGLE FAM RES. | F62: 5067563 | G62: 355995 | H62: YES | I62: YES | J62: 44063
A63: DHI Title of Nevada | B63: DHI | C63: LONGLEY | D63: N/A | E63: SINGLE FAM RES. | F63: 5070767 | G63: 355000 | H63: YES | I63: YES | J63: 44071
A64: DHI Title of Nevada | B64: DHI | C64: LONGLEY | D64: N/A | E64: SINGLE FAM RES. | F64: 5070844 | G64: 357290 | H64: YES | I64: YES | J64: 44071
A65: DHI Title of Nevada | B65: DHI | C65: LONGLEY | D65: N/A | E65: SINGLE FAM RES. | F65: 5064827 | G65: 324995 | H65: YES | I65: YES | J65: 44056
A66: DHI Title of Nevada | B66: DHI | C66: LONGLEY | D66: N/A | E66: SINGLE FAM RES. | F66: 5070758 | G66: 360000 | H66: YES | I66: YES | J66: 44071
A67: DHI Title of Nevada | B67: DHI | C67: LONGLEY | D67: N/A | E67: SINGLE FAM RES. | F67: 5068109 | G67: 499995 | H67: YES | I67: YES | J67: 44064
A68: DHI Title of Nevada | B68: DHI | C68: LONGLEY | D68: N/A | E68: SINGLE FAM RES. | F68: 5068338 | G68: 459995 | H68: YES | I68: YES | J68: 44067
A69: DHI Title of Nevada | B69: DHI | C69: LONGLEY | D69: N/A | E69: SINGLE FAM RES. | F69: 5070958 | G69: 364995 | H69: YES | I69: YES | J69: 44071
A70: DHI Title of Nevada | B70: DHI | C70: LONGLEY | D70: N/A | E70: SINGLE FAM RES. | F70: 5068399 | G70: 333995 | H70: YES | I70: YES | J70: 44067
A71: DHI Title of Nevada | B71: DHI | C71: LONGLEY | D71: N/A | E71: SINGLE FAM RES. | F71: 5070544 | G71: 266995 | H71: YES | I71: YES | J71: 44071
A72: DHI Title of Nevada | B72: DHI | C72: LONGLEY | D72: N/A | E72: SINGLE FAM RES. | F72: 5067186 | G72: 379995 | H72: YES | I72: YES | J72: 44062
A73: DHI Title of Nevada | B73: DHI | C73: LONGLEY | D73: N/A | E73: SINGLE FAM RES. | F73: 5070499 | G73: 364995 | H73: YES | I73: YES | J73: 44071
A74: DHI Title of Nevada | B74: DHI | C74: LONGLEY | D74: N/A | E74: SINGLE FAM RES. | F74: 5062938 | G74: 317995 | H74: YES | I74: YES | J74: 44050
A75: DHI Title of Nevada | B75: DHI | C75: LONGLEY | D75: N/A | E75: SINGLE FAM RES. | F75: 5070092 | G75: 337995 | H75: YES | I75: YES | J75: 44070
A76: DHI Title of Nevada | B76: DHI | C76: LONGLEY | D76: N/A | E76: SINGLE FAM RES. | F76: 5069744 | G76: 528062 | H76: YES | I76: YES | J76: 44069
A77: DHI Title of Nevada | B77: DHI | C77: LONGLEY | D77: N/A | E77: SINGLE FAM RES. | F77: 5069668 | G77: 381995 | H77: YES | I77: YES | J77: 44069
A78: DHI Title of Nevada | B78: DHI | C78: LONGLEY | D78: N/A | E78: SINGLE FAM RES. | F78: 5062748 | G78: 369995 | H78: YES | I78: YES | J78: 44050
A79: DHI Title of Nevada | B79: DHI | C79: LONGLEY | D79: N/A | E79: SINGLE FAM RES. | F79: 5069776 | G79: 386995 | H79: YES | I79: YES | J79: 44069
A80: DHI Title of Nevada | B80: DHI | C80: LONGLEY | D80: N/A | E80: SINGLE FAM RES. | F80: 5069795 | G80: 327995 | H80: YES | I80: YES | J80: 44069
A81: DHI Title of Nevada | B81: DHI | C81: LONGLEY | D81: N/A | E81: SINGLE FAM RES. | F81: 5069812 | G81: 531062 | H81: YES | I81: YES | J81: 44069
A82: DHI Title of Nevada | B82: DHI | C82: LONGLEY | D82: N/A | E82: SINGLE FAM RES. | F82: 5069440 | G82: 366995 | H82: YES | I82: YES | J82: 44069
A83: DHI Title of Nevada | B83: DHI | C83: LONGLEY | D83: N/A | E83: SINGLE FAM RES. | F83: 5070308 | G83: 329995 | H83: YES | I83: YES | J83: 44070
A84: DHI Title of Nevada | B84: DHI | C84: LONGLEY | D84: N/A | E84: SINGLE FAM RES. | F84: 5065331 | G84: 339995 | H84: YES | I84: YES | J84: 44057
A85: DHI Title of Nevada | B85: DHI | C85: LONGLEY | D85: N/A | E85: SINGLE FAM RES. | F85: 5066822 | G85: 309995 | H85: YES | I85: YES | J85: 44061
A86: DHI Title of Nevada | B86: DHI | C86: LONGLEY | D86: N/A | E86: SINGLE FAM RES. | F86: 5069037 | G86: 364995 | H86: YES | I86: YES | J86: 44068
A87: DHI Title of Nevada | B87: DHI | C87: LONGLEY | D87: N/A | E87: SINGLE FAM RES. | F87: 5064947 | G87: 297995 | H87: YES | I87: YES | J87: 44056
A88: DHI Title of Nevada | B88: DHI | C88: LONGLEY | D88: N/A | E88: SINGLE FAM RES. | F88: 5068929 | G88: 284995 | H88: YES | I88: YES | J88: 44068
A89: DHI Title of Nevada | B89: DHI | C89: LONGLEY | D89: N/A | E89: SINGLE FAM RES. | F89: 5064850 | G89: 329995 | H89: YES | I89: YES | J89: 44056
A90: DHI Title of Nevada | B90: DHI | C90: LONGLEY | D90: N/A | E90: SINGLE FAM RES. | F90: 5068926 | G90: 304075 | H90: YES | I90: YES | J90: 44068
A91: DHI Title of Nevada | B91: DHI | C91: LONGLEY | D91: N/A | E91: SINGLE FAM RES. | F91: 5065477 | G91: 365995 | H91: YES | I91: YES | J91: 44057
A92: DHI Title of Nevada | B92: DHI | C92: LONGLEY | D92: N/A | E92: SINGLE FAM RES. | F92: 5066457 | G92: 302995 | H92: YES | I92: YES | J92: 44061
A93: DHI Title of Nevada | B93: DHI | C93: LONGLEY | D93: N/A | E93: SINGLE FAM RES. | F93: 5066635 | G93: 364995 | H93: YES | I93: YES | J93: 44061
A94: DHI Title of Nevada | B94: DHI | C94: LONGLEY | D94: N/A | E94: SINGLE FAM RES. | F94: 5069891 | G94: 559735 | H94: YES | I94: YES | J94: 44069
A95: DHI Title of Nevada | B95: DHI | C95: LONGLEY | D95: N/A | E95: SINGLE FAM RES. | F95: 5071612 | G95: 320995 | H95: YES | I95: YES | J95: 44074
A96: DHI Title of Nevada | B96: DHI | C96: LONGLEY | D96: N/A | E96: SINGLE FAM RES. | F96: 5061490 | G96: 329995 | H96: YES | I96: YES | J96: 44047
A97: DHI Title of Nevada | B97: DHI | C97: LONGLEY | D97: N/A | E97: SINGLE FAM RES. | F97: 5062068 | G97: 266995 | H97: YES | I97: YES | J97: 44048
A98: DHI Title of Nevada | B98: DHI | C98: LONGLEY | D98: N/A | E98: SINGLE FAM RES. | F98: 5071693 | G98: 309995 | H98: YES | I98: YES | J98: 44074
A99: First American Title | B99: FA | C99: INCLINE | D99: VD | E99: CONDO/TWNHSE | F99: 5065320 | G99: 1582500 | H99: NO | I99: YES | J99: 44057
A100: First American Title | B100: FA | C100: KIETZKE | D100: MLR | E100: COMM'L/IND'L | F100: 5064055 | G100: 3100000 | H100: NO | I100: YES | J100: 44054
A101: First American Title | B101: FA | C101: KIETZKE | D101: TK | E101: SINGLE FAM RES. | F101: 5069480 | G101: 325000 | H101: NO | I101: YES | J101: 44069
A102: First American Title | B102: FA | C102: KIETZKE | D102: MLR | E102: SINGLE FAM RES. | F102: 5068519 | G102: 368900 | H102: YES | I102: YES | J102: 44067
A103: First American Title | B103: FA | C103: KIETZKE | D103: TK | E103: CONDO/TWNHSE | F103: 5068531 | G103: 331000 | H103: NO | I103: YES | J103: 44067
A104: First American Title | B104: FA | C104: KIETZKE | D104: MLR | E104: VACANT LAND | F104: 5064154 | G104: 125000 | H104: NO | I104: YES | J104: 44054
A105: First American Title | B105: FA | C105: INCLINE | D105: VD | E105: SINGLE FAM RES. | F105: 5066760 | G105: 1400000 | H105: NO | I105: YES | J105: 44061
A106: First American Title | B106: FA | C106: KIETZKE | D106: TK | E106: CONDO/TWNHSE | F106: 5063994 | G106: 175000 | H106: NO | I106: YES | J106: 44054
A107: First American Title | B107: FA | C107: SPARKS | D107: JP | E107: SINGLE FAM RES. | F107: 5064283 | G107: 555000 | H107: NO | I107: YES | J107: 44055
A108: First American Title | B108: FA | C108: KIETZKE | D108: TK | E108: SINGLE FAM RES. | F108: 5070463 | G108: 530000 | H108: NO | I108: YES | J108: 44071
A109: First American Title | B109: FA | C109: SPARKS | D109: CY | E109: SINGLE FAM RES. | F109: 5070300 | G109: 407000 | H109: NO | I109: YES | J109: 44070
A110: First American Title | B110: FA | C110: KIETZKE | D110: MH | E110: SINGLE FAM RES. | F110: 5071671 | G110: 500000 | H110: NO | I110: YES | J110: 44074
A111: First American Title | B111: FA | C111: INCLINE | D111: VD | E111: SINGLE FAM RES. | F111: 5064575 | G111: 4747500 | H111: NO | I111: YES | J111: 44055
A112: First American Title | B112: FA | C112: INCLINE | D112: VD | E112: SINGLE FAM RES. | F112: 5062000 | G112: 5250000 | H112: NO | I112: YES | J112: 44048
A113: First American Title | B113: FA | C113: KIETZKE | D113: KS | E113: SINGLE FAM RES. | F113: 5061977 | G113: 655000 | H113: NO | I113: YES | J113: 44048
A114: First American Title | B114: FA | C114: SPARKS | D114: CY | E114: SINGLE FAM RES. | F114: 5068789 | G114: 404380 | H114: YES | I114: YES | J114: 44068
A115: First American Title | B115: FA | C115: KIETZKE | D115: TK | E115: CONDO/TWNHSE | F115: 5066630 | G115: 168000 | H115: NO | I115: YES | J115: 44061
A116: First American Title | B116: FA | C116: INCLINE | D116: VD | E116: SINGLE FAM RES. | F116: 5070312 | G116: 3100000 | H116: NO | I116: YES | J116: 44070
A117: First American Title | B117: FA | C117: SPARKS | D117: CY | E117: SINGLE FAM RES. | F117: 5068415 | G117: 465000 | H117: NO | I117: YES | J117: 44067
A118: First American Title | B118: FA | C118: KIETZKE | D118: MH | E118: SINGLE FAM RES. | F118: 5063515 | G118: 339000 | H118: NO | I118: YES | J118: 44053
A119: First American Title | B119: FA | C119: KIETZKE | D119: TK | E119: SINGLE FAM RES. | F119: 5067271 | G119: 345000 | H119: NO | I119: YES | J119: 44062
A120: First American Title | B120: FA | C120: INCLINE | D120: VD | E120: SINGLE FAM RES. | F120: 5070576 | G120: 12000000 | H120: NO | I120: YES | J120: 44071
A121: First American Title | B121: FA | C121: KIETZKE | D121: TK | E121: SINGLE FAM RES. | F121: 5071359 | G121: 490000 | H121: NO | I121: YES | J121: 44074
A122: First American Title | B122: FA | C122: KIETZKE | D122: TK | E122: SINGLE FAM RES. | F122: 5071362 | G122: 350000 | H122: NO | I122: YES | J122: 44074
A123: First American Title | B123: FA | C123: KIETZKE | D123: KS | E123: SINGLE FAM RES. | F123: 5063598 | G123: 349000 | H123: NO | I123: YES | J123: 44053
A124: First American Title | B124: FA | C124: KIETZKE | D124: TK | E124: CONDO/TWNHSE | F124: 5063638 | G124: 159000 | H124: NO | I124: YES | J124: 44053
A125: First American Title | B125: FA | C125: KIETZKE | D125: KS | E125: SINGLE FAM RES. | F125: 5067040 | G125: 490000 | H125: NO | I125: YES | J125: 44062
A126: First American Title | B126: FA | C126: INCLINE | D126: VD | E126: CONDO/TWNHSE | F126: 5063664 | G126: 1175000 | H126: NO | I126: YES | J126: 44053
A127: First American Title | B127: FA | C127: SPARKS | D127: JP | E127: SINGLE FAM RES. | F127: 5063507 | G127: 715000 | H127: NO | I127: YES | J127: 44053
A128: First American Title | B128: FA | C128: SPARKS | D128: CY | E128: SINGLE FAM RES. | F128: 5063687 | G128: 548000 | H128: NO | I128: YES | J128: 44053
A129: First American Title | B129: FA | C129: KIETZKE | D129: TK | E129: SINGLE FAM RES. | F129: 5060986 | G129: 450000 | H129: NO | I129: YES | J129: 44046
A130: First American Title | B130: FA | C130: KIETZKE | D130: MH | E130: SINGLE FAM RES. | F130: 5068444 | G130: 383000 | H130: NO | I130: YES | J130: 44067
A131: First American Title | B131: FA | C131: SPARKS | D131: JP | E131: SINGLE FAM RES. | F131: 5070470 | G131: 430000 | H131: NO | I131: YES | J131: 44071
A132: First American Title | B132: FA | C132: KIETZKE | D132: TK | E132: SINGLE FAM RES. | F132: 5070466 | G132: 735000 | H132: NO | I132: YES | J132: 44071
A133: First American Title | B133: FA | C133: KIETZKE | D133: MLR | E133: SINGLE FAM RES. | F133: 5061862 | G133: 220000 | H133: NO | I133: YES | J133: 44048
A134: First American Title | B134: FA | C134: SPARKS | D134: JP | E134: SINGLE FAM RES. | F134: 5063922 | G134: 374474 | H134: YES | I134: YES | J134: 44054
A135: First American Title | B135: FA | C135: LAS VEGAS | D135: BB | E135: APARTMENT BLDG. | F135: 5063642 | G135: 3550000 | H135: NO | I135: YES | J135: 44053
A136: First American Title | B136: FA | C136: INCLINE | D136: VD | E136: SINGLE FAM RES. | F136: 5061464 | G136: 6200000 | H136: NO | I136: YES | J136: 44047
A137: First American Title | B137: FA | C137: KIETZKE | D137: MLR | E137: VACANT LAND | F137: 5069934 | G137: 1212000 | H137: NO | I137: YES | J137: 44069
A138: First American Title | B138: FA | C138: MINDEN | D138: MK | E138: CONDO/TWNHSE | F138: 5065284 | G138: 100000 | H138: NO | I138: YES | J138: 44057
A139: First American Title | B139: FA | C139: KIETZKE | D139: TK | E139: SINGLE FAM RES. | F139: 5065290 | G139: 267500 | H139: NO | I139: YES | J139: 44057
A140: First American Title | B140: FA | C140: KIETZKE | D140: TK | E140: MOBILE HOME | F140: 5069918 | G140: 240000 | H140: NO | I140: YES | J140: 44069
A141: First American Title | B141: FA | C141: KIETZKE | D141: TK | E141: SINGLE FAM RES. | F141: 5071531 | G141: 519000 | H141: NO | I141: YES | J141: 44074
A142: First American Title | B142: FA | C142: INCLINE | D142: VD | E142: CONDO/TWNHSE | F142: 5061452 | G142: 970000 | H142: NO | I142: YES | J142: 44047
A143: First American Title | B143: FA | C143: KIETZKE | D143: TK | E143: VACANT LAND | F143: 5071617 | G143: 110000 | H143: NO | I143: YES | J143: 44074
A144: First American Title | B144: FA | C144: INCLINE | D144: VD | E144: CONDO/TWNHSE | F144: 5068844 | G144: 470000 | H144: NO | I144: YES | J144: 44068
A145: First American Title | B145: FA | C145: KIETZKE | D145: TK | E145: SINGLE FAM RES. | F145: 5069856 | G145: 225000 | H145: NO | I145: YES | J145: 44069
A146: First American Title | B146: FA | C146: SPARKS | D146: CY | E146: SINGLE FAM RES. | F146: 5065194 | G146: 420000 | H146: NO | I146: YES | J146: 44057
A147: First American Title | B147: FA | C147: INCLINE | D147: VD | E147: CONDO/TWNHSE | F147: 5065456 | G147: 500000 | H147: NO | I147: YES | J147: 44057
A148: First American Title | B148: FA | C148: KIETZKE | D148: KS | E148: CONDO/TWNHSE | F148: 5069246 | G148: 333000 | H148: NO | I148: YES | J148: 44069
A149: First American Title | B149: FA | C149: INCLINE | D149: VD | E149: SINGLE FAM RES. | F149: 5061521 | G149: 290000 | H149: NO | I149: YES | J149: 44047
A150: First American Title | B150: FA | C150: KIETZKE | D150: TK | E150: CONDO/TWNHSE | F150: 5061517 | G150: 230000 | H150: NO | I150: YES | J150: 44047
A151: First American Title | B151: FA | C151: KIETZKE | D151: TK | E151: SINGLE FAM RES. | F151: 5069640 | G151: 1200000 | H151: NO | I151: YES | J151: 44069
A152: First American Title | B152: FA | C152: SPARKS | D152: CY | E152: SINGLE FAM RES. | F152: 5069628 | G152: 466303 | H152: YES | I152: YES | J152: 44069
A153: First American Title | B153: FA | C153: SPARKS | D153: JP | E153: SINGLE FAM RES. | F153: 5065619 | G153: 635000 | H153: NO | I153: YES | J153: 44057
A154: First American Title | B154: FA | C154: SPARKS | D154: CY | E154: SINGLE FAM RES. | F154: 5065421 | G154: 275000 | H154: NO | I154: YES | J154: 44057
A155: First American Title | B155: FA | C155: KIETZKE | D155: MLR | E155: SINGLE FAM RES. | F155: 5066505 | G155: 355000 | H155: NO | I155: YES | J155: 44061
A156: First American Title | B156: FA | C156: KIETZKE | D156: TK | E156: CONDO/TWNHSE | F156: 5066936 | G156: 134900 | H156: NO | I156: YES | J156: 44062
A157: First American Title | B157: FA | C157: INCLINE | D157: VD | E157: CONDO/TWNHSE | F157: 5068848 | G157: 1462500 | H157: NO | I157: YES | J157: 44068
A158: First American Title | B158: FA | C158: KIETZKE | D158: MLR | E158: VACANT LAND | F158: 5064960 | G158: 325000 | H158: NO | I158: YES | J158: 44056
A159: First American Title | B159: FA | C159: KIETZKE | D159: KS | E159: SINGLE FAM RES. | F159: 5071471 | G159: 550000 | H159: NO | I159: YES | J159: 44074
A160: First American Title | B160: FA | C160: KIETZKE | D160: MLR | E160: COMM'L/IND'L | F160: 5064982 | G160: 675000 | H160: NO | I160: YES | J160: 44056
A161: First American Title | B161: FA | C161: INCLINE | D161: VD | E161: SINGLE FAM RES. | F161: 5061814 | G161: 1500000 | H161: NO | I161: YES | J161: 44048
A162: First American Title | B162: FA | C162: KIETZKE | D162: MLR | E162: SINGLE FAM RES. | F162: 5064984 | G162: 324900 | H162: YES | I162: YES | J162: 44056
A163: First American Title | B163: FA | C163: SPARKS | D163: CY | E163: SINGLE FAM RES. | F163: 5065248 | G163: 620053 | H163: NO | I163: YES | J163: 44057
A164: First American Title | B164: FA | C164: SPARKS | D164: CY | E164: SINGLE FAM RES. | F164: 5066511 | G164: 430000 | H164: NO | I164: YES | J164: 44061
A165: First American Title | B165: FA | C165: SPARKS | D165: CY | E165: SINGLE FAM RES. | F165: 5070048 | G165: 414500 | H165: NO | I165: YES | J165: 44070
A166: First American Title | B166: FA | C166: INCLINE | D166: VD | E166: SINGLE FAM RES. | F166: 5065030 | G166: 879000 | H166: NO | I166: YES | J166: 44056
A167: First American Title | B167: FA | C167: KIETZKE | D167: KS | E167: CONDO/TWNHSE | F167: 5070119 | G167: 250000 | H167: NO | I167: YES | J167: 44070
A168: First American Title | B168: FA | C168: SPARKS | D168: CY | E168: SINGLE FAM RES. | F168: 5066401 | G168: 299000 | H168: NO | I168: YES | J168: 44061
A169: First American Title | B169: FA | C169: INCLINE | D169: VD | E169: SINGLE FAM RES. | F169: 5070113 | G169: 24850 | H169: NO | I169: YES | J169: 44070
A170: First American Title | B170: FA | C170: SPARKS | D170: CY | E170: SINGLE FAM RES. | F170: 5070106 | G170: 369900 | H170: NO | I170: YES | J170: 44070
A171: First American Title | B171: FA | C171: KIETZKE | D171: TK | E171: SINGLE FAM RES. | F171: 5068969 | G171: 355000 | H171: NO | I171: YES | J171: 44068
A172: First American Title | B172: FA | C172: SEATTLE | D172: NCS | E172: APARTMENT BLDG. | F172: 5070084 | G172: 40000000 | H172: NO | I172: YES | J172: 44070
A173: First American Title | B173: FA | C173: SPARKS | D173: CY | E173: SINGLE FAM RES. | F173: 5070217 | G173: 525000 | H173: NO | I173: YES | J173: 44070
A174: First American Title | B174: FA | C174: KIETZKE | D174: KS | E174: SINGLE FAM RES. | F174: 5068876 | G174: 342100 | H174: NO | I174: YES | J174: 44068
A175: First American Title | B175: FA | C175: KIETZKE | D175: TK | E175: CONDO/TWNHSE | F175: 5068053 | G175: 335000 | H175: NO | I175: YES | J175: 44064
A176: First American Title | B176: FA | C176: LAS VEGAS | D176: NCS | E176: COMM'L/IND'L | F176: 5062851 | G176: 37844000 | H176: NO | I176: YES | J176: 44050
A177: First American Title | B177: FA | C177: SPARKS | D177: JP | E177: SINGLE FAM RES. | F177: 5062393 | G177: 667430 | H177: YES | I177: YES | J177: 44049
A178: First American Title | B178: FA | C178: SPARKS | D178: JP | E178: SINGLE FAM RES. | F178: 5062736 | G178: 67000 | H178: NO | I178: YES | J178: 44050
A179: First American Title | B179: FA | C179: INCLINE | D179: VD | E179: SINGLE FAM RES. | F179: 5067545 | G179: 1220000 | H179: NO | I179: YES | J179: 44063
A180: First American Title | B180: FA | C180: INCLINE | D180: VD | E180: SINGLE FAM RES. | F180: 5070769 | G180: 6100000 | H180: NO | I180: YES | J180: 44071
A181: First American Title | B181: FA | C181: KIETZKE | D181: MH | E181: SINGLE FAM RES. | F181: 5060787 | G181: 423000 | H181: NO | I181: YES | J181: 44046
A182: First American Title | B182: FA | C182: KIETZKE | D182: MLR | E182: SINGLE FAM RES. | F182: 5060833 | G182: 640000 | H182: NO | I182: YES | J182: 44046
A183: First American Title | B183: FA | C183: INCLINE | D183: VD | E183: CONDO/TWNHSE | F183: 5063069 | G183: 437000 | H183: NO | I183: YES | J183: 44050
A184: First American Title | B184: FA | C184: KIETZKE | D184: KS | E184: SINGLE FAM RES. | F184: 5062414 | G184: 320000 | H184: NO | I184: YES | J184: 44049
A185: First American Title | B185: FA | C185: INCLINE | D185: VD | E185: CONDO/TWNHSE | F185: 5060811 | G185: 875000 | H185: NO | I185: YES | J185: 44046
A186: First American Title | B186: FA | C186: SPARKS | D186: JP | E186: SINGLE FAM RES. | F186: 5067871 | G186: 449000 | H186: NO | I186: YES | J186: 44064
A187: First American Title | B187: FA | C187: KIETZKE | D187: TK | E187: SINGLE FAM RES. | F187: 5063491 | G187: 408000 | H187: NO | I187: YES | J187: 44053
A188: First American Title | B188: FA | C188: SPARKS | D188: CY | E188: SINGLE FAM RES. | F188: 5068088 | G188: 395692 | H188: YES | I188: YES | J188: 44064
A189: First American Title | B189: FA | C189: INCLINE | D189: VD | E189: CONDO/TWNHSE | F189: 5067591 | G189: 1225000 | H189: NO | I189: YES | J189: 44063
A190: First American Title | B190: FA | C190: KIETZKE | D190: MLR | E190: SINGLE FAM RES. | F190: 5070973 | G190: 396918 | H190: YES | I190: YES | J190: 44071
A191: First American Title | B191: FA | C191: SPARKS | D191: JP | E191: SINGLE FAM RES. | F191: 5067861 | G191: 242000 | H191: NO | I191: YES | J191: 44064
A192: First American Title | B192: FA | C192: KIETZKE | D192: TK | E192: CONDO/TWNHSE | F192: 5063029 | G192: 123500 | H192: NO | I192: YES | J192: 44050
A193: First American Title | B193: FA | C193: KIETZKE | D193: KS | E193: SINGLE FAM RES. | F193: 5063017 | G193: 510000 | H193: NO | I193: YES | J193: 44050
A194: First American Title | B194: FA | C194: KIETZKE | D194: KS | E194: SINGLE FAM RES. | F194: 5062828 | G194: 456000 | H194: NO | I194: YES | J194: 44050
A195: First American Title | B195: FA | C195: KIETZKE | D195: TK | E195: CONDO/TWNHSE | F195: 5063023 | G195: 150000 | H195: NO | I195: YES | J195: 44050
A196: First American Title | B196: FA | C196: KIETZKE | D196: KS | E196: SINGLE FAM RES. | F196: 5062813 | G196: 470000 | H196: NO | I196: YES | J196: 44050
A197: First American Title | B197: FA | C197: KIETZKE | D197: MLR | E197: SINGLE FAM RES. | F197: 5070848 | G197: 396205 | H197: YES | I197: YES | J197: 44071
A198: First American Title | B198: FA | C198: INCLINE | D198: VD | E198: SINGLE FAM RES. | F198: 5067976 | G198: 890000 | H198: NO | I198: YES | J198: 44064
A199: First American Title | B199: FA | C199: LAS VEGAS | D199: NCS | E199: VACANT LAND | F199: 5067486 | G199: 19373047 | H199: NO | I199: YES | J199: 44063
A200: First American Title | B200: FA | C200: INCLINE | D200: VD | E200: 2-4 PLEX | F200: 5062506 | G200: 700000 | H200: NO | I200: YES | J200: 44049
... 985 more rows

Sheet LOANS_LIST (hidden)
A1: FULLNAME | B1: RECBY | C1: TYPELOAN | D1: APN | E1: DOCNUM | F1: AMOUNT | G1: RECDATE | H1: LENDER | L1: 1118
A2: Acme Title and Escrow | B2: ACT | C2: CONVENTIONAL | D2: 508-360-13 | E2: 5071718 | F2: 230000 | G2: 44074 | H2: PRIMELENDING
A3: Acme Title and Escrow | B3: ACT | C3: CONVENTIONAL | D3: 002-523-04 | E3: 5066039 | F3: 362000 | G3: 44060 | H3: GREATER NEVADA MORTGAGE
A4: Acme Title and Escrow | B4: ACT | C4: CONVENTIONAL | D4: 161-311-01 | E4: 5071376 | F4: 326000 | G4: 44074 | H4: NEW AMERICAN FUNDING
A5: Acme Title and Escrow | B5: ACT | C5: CONVENTIONAL | D5: 021-291-10 | E5: 5065186 | F5: 124000 | G5: 44057 | H5: WELLS FARGO BANK NA
A6: Acme Title and Escrow | B6: ACT | C6: CONVENTIONAL | D6: 504-473-01 | E6: 5070519 | F6: 258000 | G6: 44071 | H6: NORTHPOINTE BANK
A7: Acme Title and Escrow | B7: ACT | C7: CONVENTIONAL | D7: 010-211-12 | E7: 5064422 | F7: 468000 | G7: 44055 | H7: GREATER NEVADA MORTGAGE
A8: Acme Title and Escrow | B8: ACT | C8: CONVENTIONAL | D8: 028-301-09 | E8: 5069617 | F8: 399000 | G8: 44069 | H8: PRIMELENDING
A9: Acme Title and Escrow | B9: ACT | C9: CONVENTIONAL | D9: 019-061-02 | E9: 5068956 | F9: 160000 | G9: 44068 | H9: ON Q FINANCIAL INC
A10: Acme Title and Escrow | B10: ACT | C10: CONVENTIONAL | D10: 532-224-04 | E10: 5063503 | F10: 361329 | G10: 44053 | H10: ONETRUST HOME LOANS
A11: Acme Title and Escrow | B11: ACT | C11: CONVENTIONAL | D11: 021-334-05 | E11: 5071409 | F11: 340000 | G11: 44074 | H11: MOVEMENT MORTGAGE LLC
A12: Acme Title and Escrow | B12: ACT | C12: CONVENTIONAL | D12: 023-232-04 | E12: 5069589 | F12: 359000 | G12: 44069 | H12: NORTHPOINTE BANK
A13: Acme Title and Escrow | B13: ACT | C13: CONVENTIONAL | D13: 165-162-11 | E13: 5068483 | F13: 305500 | G13: 44067 | H13: NEW AMERICAN FUNDING
A14: Acme Title and Escrow | B14: ACT | C14: CONVENTIONAL | D14: 049-422-11 | E14: 5071733 | F14: 223100 | G14: 44074 | H14: WOLFE FINANCIAL INC
A15: Acme Title and Escrow | B15: ACT | C15: CONVENTIONAL | D15: 014-072-16 | E15: 5062482 | F15: 170900 | G15: 44049 | H15: ONETRUST HOME LOANS
A16: Acme Title and Escrow | B16: ACT | C16: CONVENTIONAL | D16: 039-381-15 | E16: 5068069 | F16: 264000 | G16: 44064 | H16: BAY EQUITY LLC
A17: Acme Title and Escrow | B17: ACT | C17: CONVENTIONAL | D17: 038-481-15 | E17: 5071653 | F17: 277000 | G17: 44074 | H17: GREATER NEVADA MORTGAGE
A18: Acme Title and Escrow | B18: ACT | C18: CONVENTIONAL | D18: 200-112-07 | E18: 5071151 | F18: 256000 | G18: 44074 | H18: BAY EQUITY LLC
A19: Acme Title and Escrow | B19: ACT | C19: CONVENTIONAL | D19: 004-381-05 | E19: 5063917 | F19: 102639 | G19: 44054 | H19: ONETRUST HOME LOANS
A20: Acme Title and Escrow | B20: ACT | C20: CONVENTIONAL | D20: 200-282-04 | E20: 5063914 | F20: 372500 | G20: 44054 | H20: ONETRUST HOME LOANS
A21: Acme Title and Escrow | B21: ACT | C21: CONVENTIONAL | D21: 002-433-19 | E21: 5071159 | F21: 194996 | G21: 44074 | H21: NORTHPOINTE BANK
A22: Acme Title and Escrow | B22: ACT | C22: CONVENTIONAL | D22: 083-753-05 | E22: 5066706 | F22: 281250 | G22: 44061 | H22: RESIDENTIAL BANCORP
A23: Acme Title and Escrow | B23: ACT | C23: CONVENTIONAL | D23: 400-083-09 | E23: 5065521 | F23: 332400 | G23: 44057 | H23: ONETRUST HOME LOANS
A24: Acme Title and Escrow | B24: ACT | C24: CONVENTIONAL | D24: 009-780-23 | E24: 5065938 | F24: 409010 | G24: 44060 | H24: AMERICAN PACIFIC MORTGAGE CORPORATION
A25: Acme Title and Escrow | B25: ACT | C25: CONVENTIONAL | D25: 522-121-03 | E25: 5071616 | F25: 293000 | G25: 44074 | H25: ON Q FINANCIAL INC
A26: Acme Title and Escrow | B26: ACT | C26: CONVENTIONAL | D26: 028-025-09 | E26: 5063584 | F26: 261500 | G26: 44053 | H26: GUILD MORTGAGE COMPANY
A27: Acme Title and Escrow | B27: ACT | C27: CONVENTIONAL | D27: 036-554-08 | E27: 5060795 | F27: 230000 | G27: 44046 | H27: PRIMARY RESIDENTIAL MORTGAGE INC
A28: Acme Title and Escrow | B28: ACT | C28: CONVENTIONAL | D28: 005-082-11 | E28: 5062685 | F28: 304000 | G28: 44050 | H28: BAY EQUITY LLC
A29: Acme Title and Escrow | B29: ACT | C29: CONVENTIONAL | D29: 050-220-23 | E29: 5069823 | F29: 264000 | G29: 44069 | H29: PRIMARY RESIDENTIAL MORTGAGE INC
A30: Acme Title and Escrow | B30: ACT | C30: CONVENTIONAL | D30: 086-350-43 | E30: 5068131 | F30: 120700 | G30: 44064 | H30: GREATER NEVADA MORTGAGE
A31: Acme Title and Escrow | B31: ACT | C31: CONVENTIONAL | D31: 011-266-09 | E31: 5071380 | F31: 332500 | G31: 44074 | H31: BAY EQUITY LLC
A32: Acme Title and Escrow | B32: ACT | C32: CONVENTIONAL | D32: 033-123-02 | E32: 5067064 | F32: 160000 | G32: 44062 | H32: NORTHPOINTE BANK
A33: Acme Title and Escrow | B33: ACT | C33: CONVENTIONAL | D33: 502-762-04 | E33: 5067082 | F33: 221800 | G33: 44062 | H33: NEW AMERICAN FUNDING
A34: Acme Title and Escrow | B34: ACT | C34: CONVENTIONAL | D34: 028-061-51 | E34: 5063388 | F34: 451000 | G34: 44053 | H34: PRIMARY RESIDENTIAL MORTGAGE INC
A35: Acme Title and Escrow | B35: ACT | C35: CONVENTIONAL | D35: 024-183-22 | E35: 5067170 | F35: 384100 | G35: 44062 | H35: GUILD MORTGAGE COMPANY
A36: Acme Title and Escrow | B36: ACT | C36: CONVENTIONAL | D36: 560-052-19 | E36: 5070201 | F36: 176500 | G36: 44070 | H36: GUILD MORTGAGE COMPANY
A37: Acme Title and Escrow | B37: ACT | C37: CONVENTIONAL | D37: 516-263-09 | E37: 5064335 | F37: 209000 | G37: 44055 | H37: NORTHPOINTE BANK
A38: Acme Title and Escrow | B38: ACT | C38: CONVENTIONAL | D38: 530-702-01 | E38: 5070173 | F38: 147415 | G38: 44070 | H38: GUILD MORTGAGE COMPANY
A39: Acme Title and Escrow | B39: ACT | C39: VA | D39: 234-692-14 | E39: 5063513 | F39: 295202 | G39: 44053 | H39: WELLS FARGO BANK NA
A40: Acme Title and Escrow | B40: ACT | C40: CONVENTIONAL | D40: 502-051-04 | E40: 5067747 | F40: 213500 | G40: 44064 | H40: WOLFE FINANCIAL INC
A41: Acme Title and Escrow | B41: ACT | C41: VA | D41: 504-452-13 | E41: 5071340 | F41: 284434 | G41: 44074 | H41: PRIMELENDING
A42: Acme Title and Escrow | B42: ACT | C42: VA | D42: 050-299-07 | E42: 5064728 | F42: 265216 | G42: 44056 | H42: PRIMARY RESIDENTIAL MORTGAGE INC
A43: Acme Title and Escrow | B43: ACT | C43: CONVENTIONAL | D43: 080-882-18 | E43: 5070631 | F43: 383000 | G43: 44071 | H43: PRIMELENDING
A44: Acme Title and Escrow | B44: ACT | C44: CONVENTIONAL | D44: 023-561-11 | E44: 5065963 | F44: 128650 | G44: 44060 | H44: ONETRUST HOME LOANS
A45: Acme Title and Escrow | B45: ACT | C45: CONVENTIONAL | D45: 009-681-14 | E45: 5064416 | F45: 243500 | G45: 44055 | H45: ONETRUST HOME LOANS
A46: Calatlantic Title West | B46: CAL | C46: CONVENTIONAL | D46: 140-561-11 | E46: 5064473 | F46: 337500 | G46: 44055 | H46: EAGLE HOME MORTGAGE LLC
A47: Calatlantic Title West | B47: CAL | C47: CONVENTIONAL | D47: 145-282-13 | E47: 5065955 | F47: 480000 | G47: 44060 | H47: EAGLE HOME MORTGAGE LLC
A48: Calatlantic Title West | B48: CAL | C48: CONVENTIONAL | D48: 402-631-13 | E48: 5070101 | F48: 371500 | G48: 44070 | H48: US BANK NA
A49: First American Title | B49: FA | C49: CONVENTIONAL | D49: 236-062-10 | E49: 5060782 | F49: 331700 | G49: 44046 | H49: NORTHPOINTE BANK
A50: First American Title | B50: FA | C50: CONVENTIONAL | D50: 009-780-13 | E50: 5066345 | F50: 401000 | G50: 44061 | H50: CALIBER HOME LOANS INC
A51: First American Title | B51: FA | C51: CONVENTIONAL | D51: 538-042-12 | E51: 5067788 | F51: 510400 | G51: 44064 | H51: AXIA FINANCIAL LLC
A52: First American Title | B52: FA | C52: CONVENTIONAL | D52: 011-285-09 | E52: 5060739 | F52: 643000 | G52: 44046 | H52: LIVE OAK BANKING COMPANY
A53: First American Title | B53: FA | C53: CONVENTIONAL | D53: 516-531-02 | E53: 5061260 | F53: 243000 | G53: 44047 | H53: UNITED WHOLESALE MORTGAGE
A54: First American Title | B54: FA | C54: CONVENTIONAL | D54: 522-944-09 | E54: 5071705 | F54: 303800 | G54: 44074 | H54: ALL WESTERN MORTGAGE INC
A55: First American Title | B55: FA | C55: CONVENTIONAL | D55: 528-493-07 | E55: 5060720 | F55: 391000 | G55: 44046 | H55: GUILD MORTGAGE COMPANY
A56: First American Title | B56: FA | C56: CONVENTIONAL | D56: 140-181-05 | E56: 5071371 | F56: 338000 | G56: 44074 | H56: OMEGA MORTGAGE GROUP
A57: First American Title | B57: FA | C57: CONVENTIONAL | D57: 003-891-01 | E57: 5067394 | F57: 340800 | G57: 44063 | H57: UNITED WHOLESALE MORTGAGE
A58: First American Title | B58: FA | C58: CONVENTIONAL | D58: 010-141-07 | E58: 5066939 | F58: 408000 | G58: 44062 | H58: CALIBER HOME LOANS INC
A59: First American Title | B59: FA | C59: CONVENTIONAL | D59: 038-573-07 | E59: 5061399 | F59: 318750 | G59: 44047 | H59: ALL WESTERN MORTGAGE INC
A60: First American Title | B60: FA | C60: CONVENTIONAL | D60: 148-261-04 | E60: 5066583 | F60: 300000 | G60: 44061 | H60: ALL WESTERN MORTGAGE INC
A61: First American Title | B61: FA | C61: CONVENTIONAL | D61: 090-211-10 | E61: 5067413 | F61: 208000 | G61: 44063 | H61: SUMMIT FUNDING INC
A62: First American Title | B62: FA | C62: CONVENTIONAL | D62: 234-261-27 | E62: 5067451 | F62: 242000 | G62: 44063 | H62: PENTAGON FEDERAL CREDIT UNION
A63: First American Title | B63: FA | C63: CONVENTIONAL | D63: 234-111-12 | E63: 5066938 | F63: 286000 | G63: 44062 | H63: WELLS FARGO BANK NA
A64: First American Title | B64: FA | C64: CONVENTIONAL | D64: 036-061-10 | E64: 5065960 | F64: 131500 | G64: 44060 | H64: GUILD MORTGAGE COMPANY
A65: First American Title | B65: FA | C65: CONVENTIONAL | D65: 402-501-18 | E65: 5067502 | F65: 345200 | G65: 44063 | H65: WELLS FARGO BANK NA
A66: First American Title | B66: FA | C66: CONVENTIONAL | D66: 161-086-26 | E66: 5060766 | F66: 321500 | G66: 44046 | H66: CALIBER HOME LOANS INC
A67: First American Title | B67: FA | C67: FHA | D67: 144-212-02 | E67: 5071367 | F67: 930000 | G67: 44074 | H67: AMERICAN ADVISORS GROUP
A68: First American Title | B68: FA | C68: CONVENTIONAL | D68: 165-104-10 | E68: 5065367 | F68: 25000 | G68: 44057 | H68: AMERICA FIRST FEDERAL CREDIT UNION
A69: First American Title | B69: FA | C69: CONVENTIONAL | D69: 027-173-08 | E69: 5066923 | F69: 292000 | G69: 44062 | H69: SUMMIT FUNDING INC
A70: First American Title | B70: FA | C70: CONVENTIONAL | D70: 556-224-04 | E70: 5071399 | F70: 248750 | G70: 44074 | H70: UNITED WHOLESALE MORTGAGE
A71: First American Title | B71: FA | C71: CONVENTIONAL | D71: 514-153-05 | E71: 5071425 | F71: 306000 | G71: 44074 | H71: ALL WESTERN MORTGAGE INC
A72: First American Title | B72: FA | C72: CONVENTIONAL | D72: 236-074-02 | E72: 5071366 | F72: 306000 | G72: 44074 | H72: GATEWAY MORTGAGE GROUP
A73: First American Title | B73: FA | C73: CONVENTIONAL | D73: 514-213-42 | E73: 5063477 | F73: 285000 | G73: 44053 | H73: GREATER NEVADA MORTGAGE
A74: First American Title | B74: FA | C74: CONVENTIONAL | D74: 008-221-33 | E74: 5069938 | F74: 276000 | G74: 44070 | H74: GATEWAY MORTGAGE GROUP
A75: First American Title | B75: FA | C75: CONVENTIONAL | D75: 204-472-15 | E75: 5069926 | F75: 254000 | G75: 44069 | H75: ALL WESTERN MORTGAGE INC
A76: First American Title | B76: FA | C76: CONVENTIONAL | D76: 006-351-09 | E76: 5063498 | F76: 208500 | G76: 44053 | H76: GUILD MORTGAGE COMPANY
A77: First American Title | B77: FA | C77: VA | D77: 045-310-87 | E77: 5068585 | F77: 438582 | G77: 44067 | H77: VALLEY WEST CORPORATION; VALLEY WEST MORTGAGE
A78: First American Title | B78: FA | C78: CONVENTIONAL | D78: 019-670-03 | E78: 5063511 | F78: 315000 | G78: 44053 | H78: ALL WESTERN MORTGAGE INC
A79: First American Title | B79: FA | C79: CONVENTIONAL | D79: 077-340-11 | E79: 5070229 | F79: 489500 | G79: 44070 | H79: GUILD MORTGAGE COMPANY
A80: First American Title | B80: FA | C80: CONVENTIONAL | D80: 140-292-12 | E80: 5067225 | F80: 265000 | G80: 44062 | H80: NEW AMERICAN FUNDING
A81: First American Title | B81: FA | C81: CONVENTIONAL | D81: 532-181-08 | E81: 5067047 | F81: 276500 | G81: 44062 | H81: CALIBER HOME LOANS INC
A82: First American Title | B82: FA | C82: CONVENTIONAL | D82: 083-483-07 | E82: 5066563 | F82: 286100 | G82: 44061 | H82: GUILD MORTGAGE COMPANY
A83: First American Title | B83: FA | C83: CONVENTIONAL | D83: 528-101-35 | E83: 5061763 | F83: 285000 | G83: 44048 | H83: UNITED WHOLESALE MORTGAGE
A84: First American Title | B84: FA | C84: CONVENTIONAL | D84: 538-091-10 | E84: 5071326 | F84: 378000 | G84: 44074 | H84: SIERRA PACIFIC MORTGAGE COMPANY INC
A85: First American Title | B85: FA | C85: CONVENTIONAL | D85: 502-681-07 | E85: 5066320 | F85: 291500 | G85: 44061 | H85: GUILD MORTGAGE COMPANY
A86: First American Title | B86: FA | C86: CONVENTIONAL | D86: 538-221-11 | E86: 5061301 | F86: 501585 | G86: 44047 | H86: NEW AMERICAN FUNDING
A87: First American Title | B87: FA | C87: CONVENTIONAL | D87: 504-742-03 | E87: 5067752 | F87: 156000 | G87: 44064 | H87: SUMMIT FUNDING INC
A88: First American Title | B88: FA | C88: VA | D88: 021-083-04 | E88: 5066708 | F88: 456782 | G88: 44061 | H88: PRIMARY RESIDENTIAL MORTGAGE INC
A89: First American Title | B89: FA | C89: CONVENTIONAL | D89: 076-190-01 | E89: 5071458 | F89: 205000 | G89: 44074 | H89: NEW AMERICAN FUNDING
A90: First American Title | B90: FA | C90: CONVENTIONAL | D90: 528-211-16 | E90: 5061736 | F90: 264200 | G90: 44048 | H90: GUILD MORTGAGE COMPANY
A91: First American Title | B91: FA | C91: CONVENTIONAL | D91: 086-882-01 | E91: 5067643 | F91: 207000 | G91: 44063 | H91: AMERICAN PACIFIC MORTGAGE CORPORATION
A92: First American Title | B92: FA | C92: CONVENTIONAL | D92: 011-282-01 | E92: 5071191 | F92: 483400 | G92: 44074 | H92: NORTHPOINTE BANK
A93: First American Title | B93: FA | C93: CONVENTIONAL | D93: 036-223-07 | E93: 5071660 | F93: 315000 | G93: 44074 | H93: AMERICAN FINANCIAL NETWORK INC
A94: First American Title | B94: FA | C94: CONVENTIONAL | D94: 017-150-39 | E94: 5065918 | F94: 243000 | G94: 44060 | H94: FAIRWAY INDEPENDENT MORTGAGE CORPORATION
A95: First American Title | B95: FA | C95: CONVENTIONAL | D95: 510-662-10 | E95: 5071496 | F95: 318360 | G95: 44074 | H95: GUILD MORTGAGE COMPANY
A96: First American Title | B96: FA | C96: VA | D96: 530-572-13 | E96: 5066780 | F96: 241117 | G96: 44061 | H96: LOANDEPOT.COM LLC
A97: First American Title | B97: FA | C97: CONVENTIONAL | D97: 079-481-16 | E97: 5067172 | F97: 365000 | G97: 44062 | H97: FRANKLIN LOAN CENTER
A98: First American Title | B98: FA | C98: VA | D98: 530-182-01 | E98: 5071714 | F98: 290738 | G98: 44074 | H98: GATEWAY MORTGAGE GROUP
A99: First American Title | B99: FA | C99: CONVENTIONAL | D99: 028-184-09 | E99: 5071288 | F99: 158617 | G99: 44074 | H99: GUILD MORTGAGE COMPANY
A100: First American Title | B100: FA | C100: FHA | D100: 562-053-10 | E100: 5071469 | F100: 336000 | G100: 44074 | H100: NEW AMERICAN FUNDING
A101: First American Title | B101: FA | C101: COMMERCIAL | D101: 031-012-06 & 11 | E101: 5071241 | F101: 18300000 | G101: 44074 | H101: BERKADIA COMMERCIAL MORTGAGE LLC
A102: First American Title | B102: FA | C102: CONVENTIONAL | D102: 161-262-07 | E102: 5071467 | F102: 262000 | G102: 44074 | H102: AMERICAN PACIFIC MORTGAGE CORPORATION
A103: First American Title | B103: FA | C103: CONVENTIONAL | D103: 534-581-05 | E103: 5065857 | F103: 291018 | G103: 44060 | H103: CMG FINANCIAL
A104: First American Title | B104: FA | C104: CONVENTIONAL | D104: 534-491-04 | E104: 5067864 | F104: 408800 | G104: 44064 | H104: NEW AMERICAN FUNDING
A105: First American Title | B105: FA | C105: CONVENTIONAL | D105: 140-613-16 | E105: 5071289 | F105: 209500 | G105: 44074 | H105: CALIBER HOME LOANS INC
A106: First American Title | B106: FA | C106: CONVENTIONAL | D106: 534-041-01 | E106: 5070078 | F106: 241870 | G106: 44070 | H106: STEARNS LENDING LLC
A107: First American Title | B107: FA | C107: CONVENTIONAL | D107: 140-062-04 | E107: 5061877 | F107: 353500 | G107: 44048 | H107: WELLS FARGO BANK NA
A108: First American Title | B108: FA | C108: CONVENTIONAL | D108: 516-421-21 | E108: 5071274 | F108: 210000 | G108: 44074 | H108: WELLS FARGO BANK NA
A109: First American Title | B109: FA | C109: CONVENTIONAL | D109: 080-311-02 | E109: 5067819 | F109: 242400 | G109: 44064 | H109: ALL WESTERN MORTGAGE INC
A110: First American Title | B110: FA | C110: CONVENTIONAL | D110: 143-092-22 | E110: 5071517 | F110: 261000 | G110: 44074 | H110: CARDINAL FINANCIAL COMPANY LIMITED PARTNERSHIP
A111: First American Title | B111: FA | C111: VA | D111: 028-432-05 | E111: 5071731 | F111: 324000 | G111: 44074 | H111: VALLEY WEST MORTGAGE
A112: First American Title | B112: FA | C112: CONVENTIONAL | D112: 128-032-19 | E112: 5071736 | F112: 300000 | G112: 44074 | H112: UNITED WHOLESALE MORTGAGE
A113: First American Title | B113: FA | C113: CONVENTIONAL | D113: 510-271-21 | E113: 5061975 | F113: 366200 | G113: 44048 | H113: AXIA FINANCIAL LLC
A114: First American Title | B114: FA | C114: CONVENTIONAL | D114: 006-381-08 | E114: 5062018 | F114: 249500 | G114: 44048 | H114: NORTHPOINTE BANK
A115: First American Title | B115: FA | C115: CONVENTIONAL | D115: 214-062-14 | E115: 5065927 | F115: 485000 | G115: 44060 | H115: ARBOR FINANCIAL GROUP
A116: First American Title | B116: FA | C116: CONVENTIONAL | D116: 019-132-04 | E116: 5067048 | F116: 284000 | G116: 44062 | H116: CALIBER HOME LOANS INC
A117: First American Title | B117: FA | C117: CONVENTIONAL | D117: 050-273-01 | E117: 5062283 | F117: 488000 | G117: 44049 | H117: GUILD MORTGAGE COMPANY
A118: First American Title | B118: FA | C118: CONVENTIONAL | D118: 161-052-04 | E118: 5071365 | F118: 231500 | G118: 44074 | H118: CARDINAL FINANCIAL COMPANY LIMITED PARTNERSHIP
A119: First American Title | B119: FA | C119: CONVENTIONAL | D119: 080-861-19 | E119: 5071294 | F119: 190000 | G119: 44074 | H119: WELLS FARGO BANK NA
A120: First American Title | B120: FA | C120: CONVENTIONAL | D120: 027-403-07 | E120: 5066937 | F120: 124000 | G120: 44062 | H120: FINANCE OF AMERICA MORTGAGE LLC
A121: First American Title | B121: FA | C121: CONVENTIONAL | D121: 078-302-03 | E121: 5062364 | F121: 270000 | G121: 44049 | H121: WELLS FARGO BANK NA
A122: First American Title | B122: FA | C122: COMMERCIAL | D122: 019-242-03, 04, 05 & 06 | E122: 5071249 | F122: 20040000 | G122: 44074 | H122: BERKADIA COMMERCIAL MORTGAGE LLC
A123: First American Title | B123: FA | C123: CONVENTIONAL | D123: 516-532-11 | E123: 5071466 | F123: 310000 | G123: 44074 | H123: MOUNTAIN AMERICA FEDERAL CREDIT UNION
A124: First American Title | B124: FA | C124: CONVENTIONAL | D124: 202-105-09 | E124: 5065843 | F124: 230000 | G124: 44060 | H124: WELLS FARGO BANK NA
A125: First American Title | B125: FA | C125: CONVENTIONAL | D125: 011-285-09 | E125: 5060703 | F125: 379900 | G125: 44046 | H125: GUILD MORTGAGE COMPANY
A126: First American Title | B126: FA | C126: FHA | D126: 140-181-02 | E126: 5066831 | F126: 344105 | G126: 44062 | H126: FREEDOM MORTGAGE CORPORATION
A127: First American Title | B127: FA | C127: CREDIT LINE | D127: 001-081-12 | E127: 5066914 | F127: 18100 | G127: 44062 | H127: UMPQUA BANK
A128: First American Title | B128: FA | C128: CONVENTIONAL | D128: 524-141-04 | E128: 5066435 | F128: 266500 | G128: 44061 | H128: UNITED WHOLESALE MORTGAGE
A129: First American Title | B129: FA | C129: CONVENTIONAL | D129: 080-351-09 | E129: 5060848 | F129: 157000 | G129: 44046 | H129: UMPQUA BANK
A130: First American Title | B130: FA | C130: CONVENTIONAL | D130: 010-221-13 | E130: 5062359 | F130: 475763 | G130: 44049 | H130: NEW AMERICAN FUNDING
A131: First American Title | B131: FA | C131: CONVENTIONAL | D131: 003-642-03 | E131: 5062252 | F131: 273400 | G131: 44049 | H131: GUILD MORTGAGE COMPANY
A132: First American Title | B132: FA | C132: VA | D132: 085-125-09 | E132: 5066814 | F132: 230170 | G132: 44061 | H132: CARDINAL FINANCIAL COMPANY LIMITED PARTNERSHIP
A133: First American Title | B133: FA | C133: COMMERCIAL | D133: 026-441-31 | E133: 5071246 | F133: 24990000 | G133: 44074 | H133: BERKADIA COMMERCIAL MORTGAGE LLC
A134: First American Title | B134: FA | C134: CONVENTIONAL | D134: 028-132-02 | E134: 5060682 | F134: 178000 | G134: 44046 | H134: WELLS FARGO BANK NA
A135: First American Title | B135: FA | C135: CONSTRUCTION | D135: 011-213-24 | E135: 5066791 | F135: 3568500 | G135: 44061 | H135: HERITAGE BANK OF NEVADA
A136: First American Title | B136: FA | C136: CONVENTIONAL | D136: 510-641-13 | E136: 5065785 | F136: 348700 | G136: 44060 | H136: GUILD MORTGAGE COMPANY
A137: First American Title | B137: FA | C137: CONVENTIONAL | D137: 165-183-14 | E137: 5066528 | F137: 350000 | G137: 44061 | H137: WELLS FARGO BANK NA
A138: First American Title | B138: FA | C138: CONVENTIONAL | D138: 530-782-06 | E138: 5071221 | F138: 380000 | G138: 44074 | H138: NEW AMERICAN FUNDING
A139: First American Title | B139: FA | C139: CONVENTIONAL | D139: 036-062-19 | E139: 5066398 | F139: 194185 | G139: 44061 | H139: GUILD MORTGAGE COMPANY
A140: First American Title | B140: FA | C140: CONVENTIONAL | D140: 028-061-01 | E140: 5065450 | F140: 368680 | G140: 44057 | H140: GUILD MORTGAGE COMPANY
A141: First American Title | B141: FA | C141: FHA | D141: 200-432-03 | E141: 5068790 | F141: 313960 | G141: 44068 | H141: GUILD MORTGAGE COMPANY
A142: First American Title | B142: FA | C142: CONVENTIONAL | D142: 514-492-13 | E142: 5062697 | F142: 202500 | G142: 44050 | H142: CALIBER HOME LOANS INC
A143: First American Title | B143: FA | C143: CONVENTIONAL | D143: 141-301-01 | E143: 5070888 | F143: 407000 | G143: 44071 | H143: ALL WESTERN MORTGAGE INC
A144: First American Title | B144: FA | C144: CONVENTIONAL | D144: 520-244-02 | E144: 5062700 | F144: 282000 | G144: 44050 | H144: CALIBER HOME LOANS INC
A145: First American Title | B145: FA | C145: CONVENTIONAL | D145: 520-283-03 | E145: 5062720 | F145: 423000 | G145: 44050 | H145: NEW AMERICAN FUNDING
A146: First American Title | B146: FA | C146: CONVENTIONAL | D146: 530-882-06 | E146: 5065288 | F146: 323000 | G146: 44057 | H146: WELCOME HOME FUNDING LLC
A147: First American Title | B147: FA | C147: CONVENTIONAL | D147: 143-111-31 | E147: 5062723 | F147: 273000 | G147: 44050 | H147: NORTHPOINTE BANK
A148: First American Title | B148: FA | C148: CONVENTIONAL | D148: 030-081-26 | E148: 5067981 | F148: 268000 | G148: 44064 | H148: GUILD MORTGAGE COMPANY
A149: First American Title | B149: FA | C149: CONVENTIONAL | D149: 160-191-07 | E149: 5070791 | F149: 233800 | G149: 44071 | H149: NEW AMERICAN FUNDING
A150: First American Title | B150: FA | C150: CONVENTIONAL | D150: 522-502-08 | E150: 5070956 | F150: 350000 | G150: 44071 | H150: JPMORGAN CHASE BANK NA
A151: First American Title | B151: FA | C151: CONVENTIONAL | D151: 001-072-13 | E151: 5068001 | F151: 206500 | G151: 44064 | H151: ALL WESTERN MORTGAGE INC
A152: First American Title | B152: FA | C152: CONVENTIONAL | D152: 534-472-01 | E152: 5063601 | F152: 181800 | G152: 44053 | H152: NEW AMERICAN FUNDING
A153: First American Title | B153: FA | C153: CONVENTIONAL | D153: 518-232-05 | E153: 5062817 | F153: 306000 | G153: 44050 | H153: GREATER NEVADA MORTGAGE
A154: First American Title | B154: FA | C154: CONVENTIONAL | D154: 510-372-01 | E154: 5062843 | F154: 118000 | G154: 44050 | H154: GUILD MORTGAGE COMPANY
A155: First American Title | B155: FA | C155: CONVENTIONAL | D155: 208-102-10 | E155: 5065473 | F155: 210500 | G155: 44057 | H155: GUILD MORTGAGE COMPANY
A156: First American Title | B156: FA | C156: CONVENTIONAL | D156: 123-294-01 | E156: 5065321 | F156: 595000 | G156: 44057 | H156: RIVER VALLEY COMMUNITY BANK
A157: First American Title | B157: FA | C157: CONVENTIONAL | D157: 534-162-05 | E157: 5070916 | F157: 260000 | G157: 44071 | H157: FIRST BANK; FIRST BANK MORTGAGE
A158: First American Title | B158: FA | C158: CONVENTIONAL | D158: 524-200-05 | E158: 5065298 | F158: 475000 | G158: 44057 | H158: GREATER NEVADA MORTGAGE
A159: First American Title | B159: FA | C159: COMMERCIAL | D159: 013-480-01 | E159: 5070321 | F159: 5750000 | G159: 44070 | H159: FIVE POINTS BANK
A160: First American Title | B160: FA | C160: CONVENTIONAL | D160: 024-211-46 | E160: 5069592 | F160: 199400 | G160: 44069 | H160: GREATER NEVADA MORTGAGE
A161: First American Title | B161: FA | C161: CONVENTIONAL | D161: 143-102-24 | E161: 5064740 | F161: 261000 | G161: 44056 | H161: GUILD MORTGAGE COMPANY
A162: First American Title | B162: FA | C162: CONVENTIONAL | D162: 036-351-21 | E162: 5070754 | F162: 202000 | G162: 44071 | H162: AXIA FINANCIAL LLC
A163: First American Title | B163: FA | C163: VA | D163: 089-243-08 | E163: 5070607 | F163: 401290 | G163: 44071 | H163: GUILD MORTGAGE COMPANY
A164: First American Title | B164: FA | C164: CONVENTIONAL | D164: 089-412-01 | E164: 5071119 | F164: 297000 | G164: 44074 | H164: SUMMIT FUNDING INC
A165: First American Title | B165: FA | C165: CONVENTIONAL | D165: 161-071-15 | E165: 5060851 | F165: 326800 | G165: 44046 | H165: NORTHPOINTE BANK
A166: First American Title | B166: FA | C166: CONVENTIONAL | D166: 030-132-06 | E166: 5063446 | F166: 334756 | G166: 44053 | H166: NEW AMERICAN FUNDING
A167: First American Title | B167: FA | C167: CONVENTIONAL | D167: 530-743-01 | E167: 5068336 | F167: 219000 | G167: 44067 | H167: GREATER NEVADA MORTGAGE
A168: First American Title | B168: FA | C168: CONVENTIONAL | D168: 530-665-04 | E168: 5070535 | F168: 320076 | G168: 44071 | H168: GUILD MORTGAGE COMPANY
A169: First American Title | B169: FA | C169: CONVENTIONAL | D169: 076-130-02 | E169: 5065224 | F169: 356500 | G169: 44057 | H169: UNITED WHOLESALE MORTGAGE
A170: First American Title | B170: FA | C170: CONVENTIONAL | D170: 080-891-05 | E170: 5068292 | F170: 215000 | G170: 44067 | H170: SUMMIT FUNDING INC
A171: First American Title | B171: FA | C171: CONVENTIONAL | D171: 550-391-10 | E171: 5068305 | F171: 296000 | G171: 44067 | H171: AMERICAN PACIFIC MORTGAGE CORPORATION
A172: First American Title | B172: FA | C172: CONVENTIONAL | D172: 008-801-01 | E172: 5067908 | F172: 273500 | G172: 44064 | H172: GUILD MORTGAGE COMPANY
A173: First American Title | B173: FA | C173: COMMERCIAL | D173: 046-080-03 | E173: 5070902 | F173: 1300000 | G173: 44071 | H173: AMERICAN AGCREDIT FLCA
A174: First American Title | B174: FA | C174: CONVENTIONAL | D174: 023-402-14 | E174: 5065242 | F174: 377200 | G174: 44057 | H174: ONETRUST HOME LOANS
A175: First American Title | B175: FA | C175: VA | D175: 522-542-08 | E175: 5070626 | F175: 400500 | G175: 44071 | H175: GUILD MORTGAGE COMPANY
A176: First American Title | B176: FA | C176: CONVENTIONAL | D176: 527-092-01 | E176: 5070540 | F176: 457000 | G176: 44071 | H176: GUILD MORTGAGE COMPANY
A177: First American Title | B177: FA | C177: CONSTRUCTION | D177: 164-391-08 | E177: 5062379 | F177: 5887500 | G177: 44049 | H177: MEADOWS BANK
A178: First American Title | B178: FA | C178: CONVENTIONAL | D178: 031-204-07 | E178: 5062544 | F178: 211590 | G178: 44049 | H178: GUILD MORTGAGE COMPANY
A179: First American Title | B179: FA | C179: CONVENTIONAL | D179: 027-392-10 | E179: 5071116 | F179: 232400 | G179: 44074 | H179: SUMMIT FUNDING INC
A180: First American Title | B180: FA | C180: CONVENTIONAL | D180: 018-223-04 | E180: 5070604 | F180: 389000 | G180: 44071 | H180: OMEGA MORTGAGE GROUP
A181: First American Title | B181: FA | C181: CONVENTIONAL | D181: 526-652-14 | E181: 5065346 | F181: 370830 | G181: 44057 | H181: GUILD MORTGAGE COMPANY
A182: First American Title | B182: FA | C182: CONVENTIONAL | D182: 534-681-11 | E182: 5070912 | F182: 472000 | G182: 44071 | H182: WESTCOAST MORTGAGE GROUP & REALTY COMPANY
A183: First American Title | B183: FA | C183: CONVENTIONAL | D183: 522-252-17 | E183: 5065379 | F183: 348000 | G183: 44057 | H183: GREATER NEVADA MORTGAGE
A184: First American Title | B184: FA | C184: CONVENTIONAL | D184: 530-701-03 | E184: 5070910 | F184: 210000 | G184: 44071 | H184: LOANDEPOT.COM LLC
A185: First American Title | B185: FA | C185: CONVENTIONAL | D185: 008-122-09 | E185: 5071120 | F185: 138500 | G185: 44074 | H185: SUMMIT FUNDING INC
A186: First American Title | B186: FA | C186: CONVENTIONAL | D186: 532-225-03 | E186: 5062676 | F186: 402500 | G186: 44050 | H186: CARDINAL FINANCIAL COMPANY LIMITED PARTNERSHIP
A187: First American Title | B187: FA | C187: CONVENTIONAL | D187: 027-435-07 | E187: 5063896 | F187: 234500 | G187: 44054 | H187: CARDINAL FINANCIAL COMPANY LIMITED PARTNERSHIP
A188: First American Title | B188: FA | C188: VA | D188: 036-192-01 | E188: 5069616 | F188: 303870 | G188: 44069 | H188: GUILD MORTGAGE COMPANY
A189: First American Title | B189: FA | C189: CONVENTIONAL | D189: 510-551-11 | E189: 5064448 | F189: 165020 | G189: 44055 | H189: GUILD MORTGAGE COMPANY
A190: First American Title | B190: FA | C190: CONVENTIONAL | D190: 510-302-11 | E190: 5063346 | F190: 206000 | G190: 44053 | H190: SUMMIT FUNDING INC
A191: First American Title | B191: FA | C191: CONVENTIONAL | D191: 148-291-22 | E191: 5070492 | F191: 233700 | G191: 44071 | H191: GUILD MORTGAGE COMPANY
A192: First American Title | B192: FA | C192: CONVENTIONAL | D192: 132-380-03 | E192: 5065018 | F192: 222000 | G192: 44056 | H192: GUILD MORTGAGE COMPANY
A193: First American Title | B193: FA | C193: CONVENTIONAL | D193: 516-432-02 | E193: 5063382 | F193: 278000 | G193: 44053 | H193: GUILD MORTGAGE COMPANY
A194: First American Title | B194: FA | C194: CONVENTIONAL | D194: 530-883-12 | E194: 5064861 | F194: 285500 | G194: 44056 | H194: GUILD MORTGAGE COMPANY
A195: First American Title | B195: FA | C195: CONVENTIONAL | D195: 528-206-05 | E195: 5068437 | F195: 324000 | G195: 44067 | H195: RENASANT BANK
A196: First American Title | B196: FA | C196: CONVENTIONAL | D196: 520-345-01 | E196: 5063886 | F196: 292000 | G196: 44054 | H196: CALIBER HOME LOANS INC
A197: First American Title | B197: FA | C197: CONVENTIONAL | D197: 005-134-15 | E197: 5067892 | F197: 165000 | G197: 44064 | H197: ALL WESTERN MORTGAGE INC
A198: First American Title | B198: FA | C198: CONVENTIONAL | D198: 089-251-06 | E198: 5064732 | F198: 154350 | G198: 44056 | H198: GUILD MORTGAGE COMPANY
A199: First American Title | B199: FA | C199: CONVENTIONAL | D199: 532-262-09 | E199: 5070230 | F199: 282500 | G199: 44070 | H199: STEARNS LENDING LLC
A200: First American Title | B200: FA | C200: CONVENTIONAL | D200: 021-751-27 | E200: 5063522 | F200: 209500 | G200: 44053 | H200: NEW AMERICAN FUNDING
... 918 more rows

Sheet SALESLOANSLIST (hidden)
A1: FULLNAME | B1: RECBY | C1: AMOUNT | D1: RECDATE | E1: DOCTYPE | L1: 2303
A2: Acme Title and Escrow | B2: ACT | C2: 329000 | D2: 44055 | E2: Deed
A3: Acme Title and Escrow | B3: ACT | C3: 100000 | D3: 44064 | E3: Deed
A4: Acme Title and Escrow | B4: ACT | C4: 307000 | D4: 44049 | E4: Deed
A5: Acme Title and Escrow | B5: ACT | C5: 245000 | D5: 44054 | E5: Deed
A6: Acme Title and Escrow | B6: ACT | C6: 530000 | D6: 44063 | E6: Deed
A7: Acme Title and Escrow | B7: ACT | C7: 229900 | D7: 44060 | E7: Deed
A8: Acme Title and Escrow | B8: ACT | C8: 312000 | D8: 44069 | E8: Deed
A9: Acme Title and Escrow | B9: ACT | C9: 500000 | D9: 44070 | E9: Deed
A10: Acme Title and Escrow | B10: ACT | C10: 417000 | D10: 44057 | E10: Deed
A11: Acme Title and Escrow | B11: ACT | C11: 445000 | D11: 44067 | E11: Deed
A12: Acme Title and Escrow | B12: ACT | C12: 353000 | D12: 44046 | E12: Deed
A13: Acme Title and Escrow | B13: ACT | C13: 370000 | D13: 44056 | E13: Deed
A14: Acme Title and Escrow | B14: ACT | C14: 65000 | D14: 44063 | E14: Deed
A15: Acme Title and Escrow | B15: ACT | C15: 361000 | D15: 44067 | E15: Deed
A16: Acme Title and Escrow | B16: ACT | C16: 426000 | D16: 44063 | E16: Deed
A17: Acme Title and Escrow | B17: ACT | C17: 410000 | D17: 44048 | E17: Deed
A18: Acme Title and Escrow | B18: ACT | C18: 495000 | D18: 44048 | E18: Deed
A19: Acme Title and Escrow | B19: ACT | C19: 320000 | D19: 44063 | E19: Deed
A20: Acme Title and Escrow | B20: ACT | C20: 340000 | D20: 44071 | E20: Deed
A21: Acme Title and Escrow | B21: ACT | C21: 324000 | D21: 44071 | E21: Deed
A22: Acme Title and Escrow | B22: ACT | C22: 61750 | D22: 44071 | E22: Deed
A23: Acme Title and Escrow | B23: ACT | C23: 350000 | D23: 44062 | E23: Deed
A24: Acme Title and Escrow | B24: ACT | C24: 53250 | D24: 44071 | E24: Deed
A25: Acme Title and Escrow | B25: ACT | C25: 349000 | D25: 44046 | E25: Deed
A26: Acme Title and Escrow | B26: ACT | C26: 375000 | D26: 44061 | E26: Deed
A27: Acme Title and Escrow | B27: ACT | C27: 445000 | D27: 44064 | E27: Deed
A28: Acme Title and Escrow | B28: ACT | C28: 290000 | D28: 44071 | E28: Deed
A29: Acme Title and Escrow | B29: ACT | C29: 468000 | D29: 44055 | E29: Deed Of Trust
A30: Acme Title and Escrow | B30: ACT | C30: 295202 | D30: 44053 | E30: Deed Of Trust
A31: Acme Title and Escrow | B31: ACT | C31: 362000 | D31: 44060 | E31: Deed Of Trust
A32: Acme Title and Escrow | B32: ACT | C32: 256000 | D32: 44074 | E32: Deed Of Trust
A33: Acme Title and Escrow | B33: ACT | C33: 265216 | D33: 44056 | E33: Deed Of Trust
A34: Acme Title and Escrow | B34: ACT | C34: 261500 | D34: 44053 | E34: Deed Of Trust
A35: Acme Title and Escrow | B35: ACT | C35: 281250 | D35: 44061 | E35: Deed Of Trust
A36: Acme Title and Escrow | B36: ACT | C36: 305500 | D36: 44067 | E36: Deed Of Trust
A37: Acme Title and Escrow | B37: ACT | C37: 332500 | D37: 44074 | E37: Deed Of Trust
A38: Acme Title and Escrow | B38: ACT | C38: 243500 | D38: 44055 | E38: Deed Of Trust
A39: Acme Title and Escrow | B39: ACT | C39: 209000 | D39: 44055 | E39: Deed Of Trust
A40: Acme Title and Escrow | B40: ACT | C40: 372500 | D40: 44054 | E40: Deed Of Trust
A41: Acme Title and Escrow | B41: ACT | C41: 160000 | D41: 44062 | E41: Deed Of Trust
A42: Acme Title and Escrow | B42: ACT | C42: 284434 | D42: 44074 | E42: Deed Of Trust
A43: Acme Title and Escrow | B43: ACT | C43: 221800 | D43: 44062 | E43: Deed Of Trust
A44: Acme Title and Escrow | B44: ACT | C44: 326000 | D44: 44074 | E44: Deed Of Trust
A45: Acme Title and Escrow | B45: ACT | C45: 384100 | D45: 44062 | E45: Deed Of Trust
A46: Acme Title and Escrow | B46: ACT | C46: 194996 | D46: 44074 | E46: Deed Of Trust
A47: Acme Title and Escrow | B47: ACT | C47: 170900 | D47: 44049 | E47: Deed Of Trust
A48: Acme Title and Escrow | B48: ACT | C48: 120700 | D48: 44064 | E48: Deed Of Trust
A49: Acme Title and Escrow | B49: ACT | C49: 230000 | D49: 44074 | E49: Deed Of Trust
A50: Acme Title and Escrow | B50: ACT | C50: 258000 | D50: 44071 | E50: Deed Of Trust
A51: Acme Title and Escrow | B51: ACT | C51: 264000 | D51: 44069 | E51: Deed Of Trust
A52: Acme Title and Escrow | B52: ACT | C52: 399000 | D52: 44069 | E52: Deed Of Trust
A53: Acme Title and Escrow | B53: ACT | C53: 359000 | D53: 44069 | E53: Deed Of Trust
A54: Acme Title and Escrow | B54: ACT | C54: 264000 | D54: 44064 | E54: Deed Of Trust
A55: Acme Title and Escrow | B55: ACT | C55: 383000 | D55: 44071 | E55: Deed Of Trust
A56: Acme Title and Escrow | B56: ACT | C56: 128650 | D56: 44060 | E56: Deed Of Trust
A57: Acme Title and Escrow | B57: ACT | C57: 223100 | D57: 44074 | E57: Deed Of Trust
A58: Acme Title and Escrow | B58: ACT | C58: 361329 | D58: 44053 | E58: Deed Of Trust
A59: Acme Title and Escrow | B59: ACT | C59: 147415 | D59: 44070 | E59: Deed Of Trust
A60: Acme Title and Escrow | B60: ACT | C60: 277000 | D60: 44074 | E60: Deed Of Trust
A61: Acme Title and Escrow | B61: ACT | C61: 304000 | D61: 44050 | E61: Deed Of Trust
A62: Acme Title and Escrow | B62: ACT | C62: 409010 | D62: 44060 | E62: Deed Of Trust
A63: Acme Title and Escrow | B63: ACT | C63: 124000 | D63: 44057 | E63: Deed Of Trust
A64: Acme Title and Escrow | B64: ACT | C64: 176500 | D64: 44070 | E64: Deed Of Trust
A65: Acme Title and Escrow | B65: ACT | C65: 160000 | D65: 44068 | E65: Deed Of Trust
A66: Acme Title and Escrow | B66: ACT | C66: 293000 | D66: 44074 | E66: Deed Of Trust
A67: Acme Title and Escrow | B67: ACT | C67: 230000 | D67: 44046 | E67: Deed Of Trust
A68: Acme Title and Escrow | B68: ACT | C68: 451000 | D68: 44053 | E68: Deed Of Trust
A69: Acme Title and Escrow | B69: ACT | C69: 102639 | D69: 44054 | E69: Deed Of Trust
A70: Acme Title and Escrow | B70: ACT | C70: 213500 | D70: 44064 | E70: Deed Of Trust
A71: Acme Title and Escrow | B71: ACT | C71: 340000 | D71: 44074 | E71: Deed Of Trust
A72: Acme Title and Escrow | B72: ACT | C72: 332400 | D72: 44057 | E72: Deed Of Trust
A73: Calatlantic Title West | B73: CAL | C73: 493950 | D73: 44063 | E73: Deed
A74: Calatlantic Title West | B74: CAL | C74: 439633 | D74: 44064 | E74: Deed
A75: Calatlantic Title West | B75: CAL | C75: 737495 | D75: 44074 | E75: Deed
A76: Calatlantic Title West | B76: CAL | C76: 347219 | D76: 44068 | E76: Deed
A77: Calatlantic Title West | B77: CAL | C77: 409950 | D77: 44068 | E77: Deed
A78: Calatlantic Title West | B78: CAL | C78: 530602 | D78: 44068 | E78: Deed
A79: Calatlantic Title West | B79: CAL | C79: 385298 | D79: 44063 | E79: Deed
A80: Calatlantic Title West | B80: CAL | C80: 390000 | D80: 44063 | E80: Deed
A81: Calatlantic Title West | B81: CAL | C81: 382495 | D81: 44068 | E81: Deed
A82: Calatlantic Title West | B82: CAL | C82: 430000 | D82: 44070 | E82: Deed
A83: Calatlantic Title West | B83: CAL | C83: 420950 | D83: 44071 | E83: Deed
A84: Calatlantic Title West | B84: CAL | C84: 424950 | D84: 44071 | E84: Deed
A85: Calatlantic Title West | B85: CAL | C85: 547511 | D85: 44053 | E85: Deed
A86: Calatlantic Title West | B86: CAL | C86: 399950 | D86: 44071 | E86: Deed
A87: Calatlantic Title West | B87: CAL | C87: 468267 | D87: 44049 | E87: Deed
A88: Calatlantic Title West | B88: CAL | C88: 486508 | D88: 44054 | E88: Deed
A89: Calatlantic Title West | B89: CAL | C89: 369950 | D89: 44055 | E89: Deed
A90: Calatlantic Title West | B90: CAL | C90: 451075 | D90: 44070 | E90: Deed
A91: Calatlantic Title West | B91: CAL | C91: 429950 | D91: 44070 | E91: Deed
A92: Calatlantic Title West | B92: CAL | C92: 439421 | D92: 44074 | E92: Deed
A93: Calatlantic Title West | B93: CAL | C93: 716160 | D93: 44060 | E93: Deed
A94: Calatlantic Title West | B94: CAL | C94: 398810 | D94: 44056 | E94: Deed
A95: Calatlantic Title West | B95: CAL | C95: 432430 | D95: 44048 | E95: Deed
A96: Calatlantic Title West | B96: CAL | C96: 599950 | D96: 44057 | E96: Deed
A97: Calatlantic Title West | B97: CAL | C97: 469950 | D97: 44074 | E97: Deed
A98: Calatlantic Title West | B98: CAL | C98: 499950 | D98: 44047 | E98: Deed
A99: Calatlantic Title West | B99: CAL | C99: 651951 | D99: 44060 | E99: Deed
A100: Calatlantic Title West | B100: CAL | C100: 340950 | D100: 44057 | E100: Deed
A101: Calatlantic Title West | B101: CAL | C101: 390128 | D101: 44069 | E101: Deed
A102: Calatlantic Title West | B102: CAL | C102: 411448 | D102: 44061 | E102: Deed
A103: Calatlantic Title West | B103: CAL | C103: 324683 | D103: 44069 | E103: Deed
A104: Calatlantic Title West | B104: CAL | C104: 439950 | D104: 44069 | E104: Deed
A105: Calatlantic Title West | B105: CAL | C105: 384730 | D105: 44064 | E105: Deed
A106: Calatlantic Title West | B106: CAL | C106: 371500 | D106: 44070 | E106: Deed Of Trust
A107: Calatlantic Title West | B107: CAL | C107: 337500 | D107: 44055 | E107: Deed Of Trust
A108: Calatlantic Title West | B108: CAL | C108: 480000 | D108: 44060 | E108: Deed Of Trust
A109: DHI Title of Nevada | B109: DHI | C109: 324995 | D109: 44056 | E109: Deed
A110: DHI Title of Nevada | B110: DHI | C110: 329995 | D110: 44056 | E110: Deed
A111: DHI Title of Nevada | B111: DHI | C111: 297995 | D111: 44056 | E111: Deed
A112: DHI Title of Nevada | B112: DHI | C112: 329995 | D112: 44047 | E112: Deed
A113: DHI Title of Nevada | B113: DHI | C113: 364995 | D113: 44061 | E113: Deed
A114: DHI Title of Nevada | B114: DHI | C114: 355995 | D114: 44063 | E114: Deed
A115: DHI Title of Nevada | B115: DHI | C115: 302995 | D115: 44061 | E115: Deed
A116: DHI Title of Nevada | B116: DHI | C116: 309995 | D116: 44061 | E116: Deed
A117: DHI Title of Nevada | B117: DHI | C117: 379995 | D117: 44062 | E117: Deed
A118: DHI Title of Nevada | B118: DHI | C118: 339995 | D118: 44057 | E118: Deed
A119: DHI Title of Nevada | B119: DHI | C119: 365995 | D119: 44057 | E119: Deed
A120: DHI Title of Nevada | B120: DHI | C120: 317995 | D120: 44050 | E120: Deed
A121: DHI Title of Nevada | B121: DHI | C121: 369995 | D121: 44050 | E121: Deed
A122: DHI Title of Nevada | B122: DHI | C122: 266995 | D122: 44048 | E122: Deed
A123: DHI Title of Nevada | B123: DHI | C123: 366995 | D123: 44069 | E123: Deed
A124: DHI Title of Nevada | B124: DHI | C124: 304075 | D124: 44068 | E124: Deed
A125: DHI Title of Nevada | B125: DHI | C125: 284995 | D125: 44068 | E125: Deed
A126: DHI Title of Nevada | B126: DHI | C126: 364995 | D126: 44071 | E126: Deed
A127: DHI Title of Nevada | B127: DHI | C127: 531062 | D127: 44069 | E127: Deed
A128: DHI Title of Nevada | B128: DHI | C128: 364995 | D128: 44068 | E128: Deed
A129: DHI Title of Nevada | B129: DHI | C129: 327995 | D129: 44069 | E129: Deed
A130: DHI Title of Nevada | B130: DHI | C130: 329995 | D130: 44070 | E130: Deed
A131: DHI Title of Nevada | B131: DHI | C131: 266995 | D131: 44071 | E131: Deed
A132: DHI Title of Nevada | B132: DHI | C132: 559735 | D132: 44069 | E132: Deed
A133: DHI Title of Nevada | B133: DHI | C133: 386995 | D133: 44069 | E133: Deed
A134: DHI Title of Nevada | B134: DHI | C134: 337995 | D134: 44070 | E134: Deed
A135: DHI Title of Nevada | B135: DHI | C135: 320995 | D135: 44074 | E135: Deed
A136: DHI Title of Nevada | B136: DHI | C136: 364995 | D136: 44071 | E136: Deed
A137: DHI Title of Nevada | B137: DHI | C137: 381995 | D137: 44069 | E137: Deed
A138: DHI Title of Nevada | B138: DHI | C138: 528062 | D138: 44069 | E138: Deed
A139: DHI Title of Nevada | B139: DHI | C139: 309995 | D139: 44074 | E139: Deed
A140: DHI Title of Nevada | B140: DHI | C140: 360000 | D140: 44071 | E140: Deed
A141: DHI Title of Nevada | B141: DHI | C141: 357290 | D141: 44071 | E141: Deed
A142: DHI Title of Nevada | B142: DHI | C142: 459995 | D142: 44067 | E142: Deed
A143: DHI Title of Nevada | B143: DHI | C143: 355000 | D143: 44071 | E143: Deed
A144: DHI Title of Nevada | B144: DHI | C144: 333995 | D144: 44067 | E144: Deed
A145: DHI Title of Nevada | B145: DHI | C145: 499995 | D145: 44064 | E145: Deed
A146: First American Title | B146: FA | C146: 350000 | D146: 44074 | E146: Deed
A147: First American Title | B147: FA | C147: 325000 | D147: 44056 | E147: Deed
A148: First American Title | B148: FA | C148: 369900 | D148: 44070 | E148: Deed
A149: First American Title | B149: FA | C149: 430000 | D149: 44071 | E149: Deed
A150: First American Title | B150: FA | C150: 24850 | D150: 44070 | E150: Deed
A151: First American Title | B151: FA | C151: 555000 | D151: 44055 | E151: Deed
A152: First American Title | B152: FA | C152: 250000 | D152: 44070 | E152: Deed
A153: First American Title | B153: FA | C153: 735000 | D153: 44071 | E153: Deed
A154: First American Title | B154: FA | C154: 490000 | D154: 44074 | E154: Deed
A155: First American Title | B155: FA | C155: 3100000 | D155: 44054 | E155: Deed
A156: First American Title | B156: FA | C156: 530000 | D156: 44071 | E156: Deed
A157: First American Title | B157: FA | C157: 125000 | D157: 44054 | E157: Deed
A158: First American Title | B158: FA | C158: 159000 | D158: 44053 | E158: Deed
A159: First American Title | B159: FA | C159: 407000 | D159: 44070 | E159: Deed
A160: First American Title | B160: FA | C160: 4747500 | D160: 44055 | E160: Deed
A161: First American Title | B161: FA | C161: 850000 | D161: 44074 | E161: Deed
A162: First American Title | B162: FA | C162: 175000 | D162: 44054 | E162: Deed
A163: First American Title | B163: FA | C163: 525000 | D163: 44070 | E163: Deed
A164: First American Title | B164: FA | C164: 3100000 | D164: 44070 | E164: Deed
A165: First American Title | B165: FA | C165: 1286000 | D165: 44053 | E165: Deed
A166: First American Title | B166: FA | C166: 37844000 | D166: 44050 | E166: Deed
A167: First American Title | B167: FA | C167: 244000 | D167: 44050 | E167: Deed
A168: First American Title | B168: FA | C168: 1160000 | D168: 44050 | E168: Deed
A169: First American Title | B169: FA | C169: 379900 | D169: 44050 | E169: Deed
A170: First American Title | B170: FA | C170: 396205 | D170: 44071 | E170: Deed
A171: First American Title | B171: FA | C171: 6100000 | D171: 44071 | E171: Deed
A172: First American Title | B172: FA | C172: 510000 | D172: 44050 | E172: Deed
A173: First American Title | B173: FA | C173: 598000 | D173: 44071 | E173: Deed
A174: First American Title | B174: FA | C174: 150000 | D174: 44050 | E174: Deed
A175: First American Title | B175: FA | C175: 123500 | D175: 44050 | E175: Deed
A176: First American Title | B176: FA | C176: 3550000 | D176: 44053 | E176: Deed
A177: First American Title | B177: FA | C177: 437000 | D177: 44050 | E177: Deed
A178: First American Title | B178: FA | C178: 374474 | D178: 44054 | E178: Deed
A179: First American Title | B179: FA | C179: 1380000 | D179: 44053 | E179: Deed
A180: First American Title | B180: FA | C180: 12000000 | D180: 44071 | E180: Deed
A181: First American Title | B181: FA | C181: 320000 | D181: 44053 | E181: Deed
A182: First American Title | B182: FA | C182: 408000 | D182: 44053 | E182: Deed
A183: First American Title | B183: FA | C183: 715000 | D183: 44053 | E183: Deed
A184: First American Title | B184: FA | C184: 339000 | D184: 44053 | E184: Deed
A185: First American Title | B185: FA | C185: 349000 | D185: 44053 | E185: Deed
A186: First American Title | B186: FA | C186: 40000000 | D186: 44070 | E186: Deed
A187: First American Title | B187: FA | C187: 396918 | D187: 44071 | E187: Deed
A188: First American Title | B188: FA | C188: 1175000 | D188: 44053 | E188: Deed
A189: First American Title | B189: FA | C189: 548000 | D189: 44053 | E189: Deed
A190: First American Title | B190: FA | C190: 685798 | D190: 44071 | E190: Deed
A191: First American Title | B191: FA | C191: 368900 | D191: 44067 | E191: Deed
A192: First American Title | B192: FA | C192: 345000 | D192: 44062 | E192: Deed
A193: First American Title | B193: FA | C193: 333000 | D193: 44069 | E193: Deed
A194: First American Title | B194: FA | C194: 19373047 | D194: 44063 | E194: Deed
A195: First American Title | B195: FA | C195: 355000 | D195: 44068 | E195: Deed
A196: First American Title | B196: FA | C196: 220000 | D196: 44063 | E196: Deed
A197: First American Title | B197: FA | C197: 1220000 | D197: 44063 | E197: Deed
A198: First American Title | B198: FA | C198: 342100 | D198: 44068 | E198: Deed
A199: First American Title | B199: FA | C199: 1462500 | D199: 44068 | E199: Deed
A200: First American Title | B200: FA | C200: 470000 | D200: 44068 | E200: Deed
... 2103 more rows
